Cogmind - Beta 15 @@@ ROGUE MODE // 2025.06.14 @ 19:55:45 Player: VT-MNC Result: Establishing 0b11! Performance ------------- Evolutions (9) 4500 Regions Visited (33) 6600 Robots Destroyed (1978) 9890 Value Destroyed (127035) 127035 Prototype IDs (387) 7740 Alien Tech Used (14) 2800 Bonus (170971) 170971 TOTAL SCORE: 329536 Bonus ------- Triggered High Security 2500 High Alert Combat Kills 94592 Follower Combat Kills 3221 Built PL-3XN's Obliterator 1000 Network Hubs Disabled 400 Met Zhirov 300 Met Warlord at Base 500 MAIN.C Attacked Warlord 500 Warlord Defense Kills 2544 Built Enhanced Grunts 300 A7 Reached Mainframe 300 Met R17 at Cetus 500 Found Hidden Lab 3000 Met R17 at Research 2000 Met Warlord at Research 2000 Scanned by Researcher 500 Pursued by Intercept 1500 Destroyed Superfortress 15000 Recovered Sigix Corpse 2000 Destroyed MAIN.C Guards 500 Met MAIN.C 5000 Destroyed MAIN.C Shell 5000 Destroyed MAIN.C 10000 Started Test 138-B 500 Destroyed A8 300 Destroyed A6 400 Destroyed A4 700 Destroyed A3 800 Destroyed A2 1000 Destroyed Architect 15000 Win 3000 Friendly Fire -3886 Cogmind --------- Core Integrity 908/1600 Matter 285/300 Energy 2682/2696 System Corruption 0% Temperature Cool (21) Movement Flying (12) Location 0b11 Command Parts ------- > --- POWER (2) -------- Graviton-Quantum Reactor > --- PROPULSION (5) --- Flying Siege-Combat Exoskeleton > --- UTILITY (14) ----- Armored Scrap Engine Concept Thermoelectric Network Concept Antigrav Storage Unit ST Field Compressor Spectral Analyzer Experimental Core Analyzer Experimental Armor Integrity Analyzer Mini Quantum Capacitor Experimental Reaction Control System Concept Phase Shift Module Centrium Linked Plating Centrium Linked Plating AEGIS Remote Shield > --- WEAPON (5) ------- Warp Thermal Nova Construct/C Sigix Broadsword > --- INVENTORY (25) --- Experimental Matter Compressor (500) ST Field Compressor Concept Networked Targeting System Concept Weapon Articulator Advanced Particle Charger Experimental Kinecellerator Experimental Kinecellerator Experimental Weapon Cycler Experimental Transmission Jammer Experimental Reaction Control System Concept Phase Shift Module Concept Cloak Mesh Experimental Powered Armor Graphene Brace Experimental Force Field Experimental Force Field Concept Matter Streamer Gatling Beam Modified Sigix Sheargun Modified Sigix Sheargun A3's Sniper Rifle Concept Miniperforator PL-3XN's Obliterator (3 Rings) Sigix Corpse Peak State ------------ > --- POWER ------------ Graviton-Quantum Reactor > --- PROPULSION ------- Flying Siege-Combat Exoskeleton > --- UTILITY ---------- Armored Scrap Engine Concept Thermoelectric Network Concept Antigrav Storage Unit Spectral Analyzer Experimental Active Sensor Suite Concept Weapon Articulator Experimental Core Analyzer Concept Phase Shift Module Concept Cloak Mesh Phase Armor Experimental Force Field > --- WEAPON ----------- Warp Thermal Nova Construct/C Sigix Broadsword > --- INVENTORY -------- Experimental Cooling System Long-range Sensor Array Concept Networked Targeting System Experimental Kinecellerator Experimental Kinecellerator Mini Quantum Capacitor Experimental Weapon Cycler Concept Phase Shift Module Graphene Brace Experimental Force Field Concept Antimissile System Improved Dynamic Insulation System Concept Matter Streamer Transdimensional Reconstructor Warp Cannon Concept Plasma Driver Concept Plasma Driver Concept Miniperforator Concept Miniperforator PL-3XN's Obliterator Sigix Terminator Multitool [Rating: 310] Favorites ----------- Power Constructs Engine Improved Ion Engine Power Core Light Nuclear Core Reactor Constructs Propulsion Light Treads Treads Light Treads Leg Aluminum Leg Wheel Compact Wheel Hover Unit Improved Airjet Flight Unit Constructs Utility Huge Storage Unit Device Armored Scrap Engine Storage Huge Storage Unit Processor Experimental Core Analyzer Hackware Hacking Suite Protection Medium Regenerative Plating Artifact Phase Armor Weapon Constructs Energy Gun Advanced Beam Rifle Energy Cannon Constructs Ballistic Gun Assault Rifle Ballistic Cannon Light Cannon Launcher Grenade Launcher Special Weapon Mining Laser Impact Weapon Impact Mace Slashing Weapon Sigix Broadsword Build | -11 -10 -10 -8 -8 -8 -6 -6 -6 -6 -6 -5 -5 -5 -5 -5 -5 -4 -4 -4 -4 -4 -4 -4 -3 -3 -3 -3 -2 -2 -2 -1 -1 -1 ------- Run | Yrd Mat Sub Mat Sto Rec Fac Ext Cet Arc Hub Fac Was Fac Upp Upp War Pro Fac Was Fac Upp Upp Zhi Pro Res Arm Lab Res Qua Frg Acc Com Ac0 Slots Evolved 18 | . . . 4 . . 4 . . . . 2 . . . . . . 2 . . . . . . 2 . . 2 . . 2 . . Power 1 | . . . . . . . . . . . . . . . . . . 1 . . . . . . . . . . . . . . . Propulsion 3 | . . . 2 . . 1 . . . . . . . . . . . . . . . . . . . . . . . . . . . Utility 12 | . . . 2 . . 2 . . . . 1 . . . . . . 1 . . . . . . 2 . . 2 . . 2 . . Weapon 2 | . . . . . . 1 . . . . 1 . . . . . . . . . . . . . . . . . . . . . . Parts Attached 348 | 1 20 10 43 17 14 21 11 6 . 9 15 5 17 . 1 8 1 14 1 5 1 . 1 . 14 7 4 7 16 36 9 12 22 Power 13 | . 3 . 5 1 1 . . . . . . . . . . . . 3 . . . . . . . . . . . . . . . Engine 8 | . 3 . 4 1 . . . . . . . . . . . . . . . . . . . . . . . . . . . . . Core 3 | . . . 1 . 1 . . . . . . . . . . . . 1 . . . . . . . . . . . . . . . Reactor 2 | . . . . . . . . . . . . . . . . . . 2 . . . . . . . . . . . . . . . Propulsion 28 | . 6 . 12 4 1 4 1 . . . . . . . . . . . . . . . . . . . . . . . . . . Treads 16 | . 3 . 8 4 1 . . . . . . . . . . . . . . . . . . . . . . . . . . . . Leg 4 | . 1 . 2 . . . 1 . . . . . . . . . . . . . . . . . . . . . . . . . . Wheel 6 | . 2 . 2 . . 2 . . . . . . . . . . . . . . . . . . . . . . . . . . . Hover 1 | . . . . . . 1 . . . . . . . . . . . . . . . . . . . . . . . . . . . Flight 1 | . . . . . . 1 . . . . . . . . . . . . . . . . . . . . . . . . . . . Utility 197 | 1 4 5 12 3 4 11 8 5 . 9 8 2 11 . 1 6 1 10 1 2 1 . 1 . 10 7 2 4 10 26 6 11 15 Device 118 | 1 1 5 6 1 2 4 4 . . 3 5 2 6 . 1 4 . 8 1 . . . . . 6 6 . 2 6 24 5 6 9 Storage 13 | . 3 . . . 1 . 1 1 . 1 . . 1 . . 1 . . . 1 . . . . 1 . . . . 1 . 1 . Processor 23 | . . . . 1 . 5 1 . . 3 1 . 2 . . 1 1 2 . . . . . . 1 . . 2 . 1 . 2 . Hackware 16 | . . . 1 1 . 2 . . . 2 2 . 2 . . . . . . . . . . . 1 . 1 . 1 . 1 . 2 Protection 25 | . . . 5 . 1 . 2 4 . . . . . . . . . . . 1 1 . 1 . 1 1 1 . 1 . . 2 4 Artifact 2 | . . . . . . . . . . . . . . . . . . . . . . . . . . . . . 2 . . . . Weapon 110 | . 7 5 14 9 8 6 2 1 . . 7 3 6 . . 2 . 1 . 3 . . . . 4 . 2 3 6 10 3 1 7 Energy Gun 31 | . . 1 5 4 2 2 1 . . . 4 . . . . 1 . . . 2 . . . . . . . . . 3 1 . 5 Energy Cannon 22 | . . 1 . 1 1 2 . 1 . . 1 2 1 . . 1 . . . 1 . . . . 1 . 2 . 1 5 1 . . Ballistic Gun 13 | . 2 2 5 . . . . . . . . 1 1 . . . . . . . . . . . . . . . . 1 . . 1 Ballistic Cannon 17 | . 3 . 2 1 2 . . . . . 1 . . . . . . . . . . . . . 3 . . 1 2 1 . . 1 Launcher 13 | . 1 . 1 1 2 . 1 . . . . . 2 . . . . 1 . . . . . . . . . 1 1 . 1 1 . Special Weapon 5 | . 1 1 . 1 1 . . . . . . . . . . . . . . . . . . . . . . 1 . . . . . Impact Weapon 4 | . . . . 1 . 1 . . . . 1 . . . . . . . . . . . . . . . . . 1 . . . . Slashing Weapon 5 | . . . 1 . . 1 . . . . . . 2 . . . . . . . . . . . . . . . 1 . . . . Piercing Weapon . | . . . . . . . . . . . . . . . . . . . . . . . . . . . . . . . . . . Special Melee Weapon . | . . . . . . . . . . . . . . . . . . . . . . . . . . . . . . . . . . Unidentified Prototypes 110 | . 1 . 3 4 1 6 . 3 . 2 5 . 8 . . 6 1 5 . . . . 2 . 5 1 4 4 14 19 4 2 10 Corrupted Parts 1 | . . . . . . . . . . . . . . . . . . . . . . . . . . . . . . 1 . . . System Corruption 2 | . . . . . . . . . . . . . . . . . . . . . . . . . . . . . . 2 . . . Parts Lost 9 | . 3 1 . 1 1 . . . . . . . . . . 2 . . . . . . . . . . . . . 1 . . . Power 1 | . 1 . . . . . . . . . . . . . . . . . . . . . . . . . . . . . . . . Propulsion 2 | . . 1 . . 1 . . . . . . . . . . . . . . . . . . . . . . . . . . . . Utility 5 | . 1 . . 1 . . . . . . . . . . . 2 . . . . . . . . . . . . . 1 . . . Weapon 1 | . 1 . . . . . . . . . . . . . . . . . . . . . . . . . . . . . . . . Highest Loss Streak 2 | . 2 1 . 1 1 . . . . . . . . . . 1 . . . . . . . . . . . . . 1 . . . To Critical Strikes . | . . . . . . . . . . . . . . . . . . . . . . . . . . . . . . . . . . Average Backups 22 | 6 20 24 23 23 23 24 24 24 24 24 23 22 23 20 22 22 22 22 23 22 22 23 23 23 22 22 21 20 21 20 20 19 23 Power . | 1 . . . . . . . . 2 2 2 2 2 2 2 1 1 . 1 . . . . . . . . . . . . . . Propulsion 2 | 4 4 4 3 3 3 3 1 1 . . . . 2 2 2 1 1 1 1 1 . . . . . . . . . . . . . Utility 10 | . 6 8 6 7 7 10 10 10 9 9 10 11 10 10 11 11 11 12 13 13 14 15 14 14 13 13 13 12 13 12 11 11 17 Weapon 8 | 1 9 10 12 11 10 8 10 10 11 10 9 7 7 5 5 7 7 7 7 7 7 7 7 7 6 6 6 5 6 5 7 5 5 Tool/Special . | . . . . . . . . . . . . . . . . . . . . . . . . . . . . . . . . . . Unused Backups 148 | . 2 7 14 4 2 5 7 11 2 6 6 3 6 2 . 7 1 1 . . 2 . 1 . 10 6 1 3 2 18 1 9 9 Power 7 | . . . . . . . . . . . . . . . . 1 1 . . . . . . . 2 1 . 1 . 1 . . . Propulsion 33 | . . 1 1 2 2 2 3 2 . . 2 1 3 1 . 2 . . . . 1 . . . 1 4 . 1 1 1 . 1 1 Utility 46 | . 1 1 4 . . 1 . 3 2 1 2 . . . . 1 . 1 . . 1 . 1 . 5 1 . 1 1 9 1 4 5 Weapon 60 | . 1 4 9 2 . 2 4 6 . 5 2 2 2 1 . 3 . . . . . . . . 2 . 1 . . 7 . 4 3 Tool/Special 2 | . . 1 . . . . . . . . . . 1 . . . . . . . . . . . . . . . . . . . . Average Slot Usage (%) 73 | . 97 99 99 99 71 59 59 53 53 52 54 58 57 57 58 57 58 57 56 56 56 57 57 57 60 60 58 62 55 58 56 58 64 Engine 5 | . 13 14 8 9 8 2 . . . . . . . . . . . . . . . . . . . . . . . . . . . Reactor 1 | . . . . . . . . 4 2 . . . . . . . 4 5 5 5 5 5 5 5 4 4 4 4 4 4 3 3 3 Treads 11 | . 20 27 24 27 11 . . 3 6 6 5 4 5 2 . 3 5 5 5 5 1 . . . . . . 2 4 4 3 2 . Wheel 1 | . 2 . 8 9 5 1 . . . . . . . . . . . . . . . . . . . . . . . . . . . Device 17 | . 12 13 15 12 17 14 13 12 13 11 11 14 6 11 11 10 11 14 15 14 14 15 14 15 16 19 21 22 16 23 25 26 26 Storage 7 | . 14 14 9 9 9 6 6 6 6 6 5 5 5 5 5 5 5 5 5 5 5 5 5 5 4 4 4 4 4 4 3 2 3 Processor 5 | . . . . . . 5 6 6 6 9 11 11 12 11 11 11 11 10 10 10 10 10 10 10 13 14 13 12 12 10 7 8 11 Protection 2 | . . . 6 13 2 2 5 6 6 3 4 1 4 5 5 5 5 4 4 5 4 5 5 5 3 3 . 4 1 . . . 6 Energy Gun 1 | . . 1 5 1 6 . . . . . . . . . . . . . . . . . . . . . . . . . . . . Energy Cannon 1 | . . 2 . 1 . 1 6 4 6 5 . 3 . . . . 4 1 . . . . . . 1 3 6 7 5 2 . . 3 Ballistic Gun 3 | . 1 14 7 6 . . . . . . . . . . . . . . . . . . . . . . . . . . . . . Ballistic Cannon 4 | . 21 3 3 5 5 4 . 2 . . 5 5 5 4 5 5 . 3 5 5 5 5 5 5 4 4 1 2 1 2 3 2 . Special Weapon 1 | . 4 4 . . . . . . . . 1 . . . . . . . . . . . . . . . . . . . . . . Slashing Weapon 1 | . . . 1 . . . . . . . . . . 4 5 5 5 4 5 5 4 4 5 3 2 . . . 2 3 2 2 2 Peak Build Rating 310 | 8 13 17 37 37 58 75 86 107 103 108 125 135 137 144 144 154 151 164 163 166 168 168 168 168 187 192 205 224 247 285 307 310 306 Average Rating 124 | 6 10 13 29 33 46 66 79 97 102 103 117 129 130 139 143 145 146 155 155 165 166 167 166 167 180 183 196 216 236 260 302 296 294 On Entrance 137 | 6 8 12 16 29 36 58 70 86 103 102 108 125 131 135 144 143 146 147 156 163 166 168 167 168 168 180 190 195 219 247 277 305 286 Naked Turns . | . . . . . . . . . . . . . . . . . . . . . . . . . . . . . . . . . . Heaviest Build 215 | 12 95 101 107 114 113 112 121 143 138 142 132 143 124 124 126 140 121 140 139 154 171 171 171 171 172 172 172 199 209 215 168 161 157 Greatest Support 321 | 20 40 40 16 63 104 104 130 199 199 199 262 307 307 307 307 307 307 307 307 307 307 214 214 321 214 214 214 214 214 214 197 275 275 Greatest Overweight (x) 9 | . 9 2 8 7 7 6 1 1 . . . . . . . . . . . . . . . . . . . . . 1 . . . Average Overweight (x) . | . 2 2 6 5 2 . . . . . . . . . . . . . . . . . . . . . . . . . . . . Largest Inventory Capacity 30 | 8 25 25 25 25 25 25 25 25 25 25 25 25 25 25 25 25 25 25 25 25 25 25 25 25 25 25 25 25 25 25 25 30 25 Average Capacity 24 | 8 22 25 25 25 25 25 25 25 25 25 25 25 25 25 25 25 25 25 25 25 25 25 25 25 25 25 25 25 25 25 25 24 25 Most Carried 25 | 8 25 25 25 25 25 25 25 25 25 25 25 25 25 25 25 25 25 25 25 25 25 25 25 25 25 25 25 25 25 25 25 25 25 Average Carried 23 | 6 20 24 24 24 24 24 24 23 24 24 24 23 24 22 24 24 24 24 25 24 24 24 24 25 24 24 24 24 24 23 22 20 24 Final Capacity 25 | 8 25 25 25 25 25 25 25 25 25 25 25 25 25 25 25 25 25 25 25 25 25 25 25 25 25 25 25 25 25 25 25 25 25 Final Carried 25 | 8 25 25 25 25 25 25 25 25 25 24 25 25 25 23 25 25 25 25 25 25 25 25 25 25 25 25 25 24 25 25 23 24 25 Scrap Engine Consumption 262 | . . . . . 68 15 6 21 2 2 6 9 4 4 . 5 8 20 11 2 3 . . 1 7 9 3 16 3 21 2 14 . Constructs Created 3 | . . . . . 3 . . . . . . . . . . . . . . . . . . . . . . . . . . . . Constructs Modified 124 | . . . . . 27 10 2 9 1 1 4 4 2 3 . 1 2 10 3 7 1 . . . 4 4 3 8 1 10 . 7 . Class Distribution -------------------- 29% | Mutant 29% | Construct 12% | Assassin 11% | Commander-Construct 6% | Scavenger-Mutant Dominant Class ---------------- Mutant | -10/Materials Mutant | -10/Subcaves Scavenger-Mutant | -8/Materials Mutant | -8/Storage Construct | -8/Recycling Construct | -6/Factory Commander-Construct | -6/Extension Commander-Construct | -6/Cetus Commander-Construct | -6/Archives Commander-Construct | -6/Hub_04(d) Commander-Construct | -5/Factory Commander-Construct | -5/Waste Commander-Construct | -5/Factory Construct | -5/Upper Caves Construct | -5/Upper Caves Construct | -5/Warlord Construct | -4/Proximity Caves Construct | -4/Factory Construct | -4/Waste Construct | -4/Factory Construct | -4/Upper Caves Construct | -4/Upper Caves Construct | -4/Zhirov Construct | -3/Proximity Caves Construct | -3/Research Scavenger-Construct | -3/Armory Scavenger-Construct | -3/Lab Construct | -2/Research Construct | -2/Quarantine Construct | -2/Protoforge Assassin | -1/Access Assassin | -1/Command Scavenger-Sprinter | -1/Access_0 Resources | -11 -10 -10 -8 -8 -8 -6 -6 -6 -6 -6 -5 -5 -5 -5 -5 -5 -4 -4 -4 -4 -4 -4 -4 -3 -3 -3 -3 -2 -2 -2 -1 -1 -1 ----------- Run | Yrd Mat Sub Mat Sto Rec Fac Ext Cet Arc Hub Fac Was Fac Upp Upp War Pro Fac Was Fac Upp Upp Zhi Pro Res Arm Lab Res Qua Frg Acc Com Ac0 Matter Collected 15535 | 220 929 458 1744 946 962 550 361 192 99 349 369 125 486 118 150 338 40 290 20 141 228 110 . 114 561 730 90 445 419 1262 318 836 1535 Remotely 877 | . . . 142 267 . . . . . . . . . . . . . . . . . . . . . . . . . . 155 . 313 Salvage Created 149900 | 126 689 403 2195 1442 1092 1123 2439 673 529 1262 952 488 1932 326 624 1466 1039 3305 1831 930 1157 550 . 738 3806 2808 90 9119 4195 34117 33613 30406 4435 Parts 5388 | 9 59 25 136 68 50 39 101 38 40 47 36 12 123 23 25 59 42 153 51 53 59 42 . 46 160 192 11 241 74 1081 691 1262 340 Haulers Intercepted 40 | . 2 . 4 6 2 1 . . . 2 3 . 4 . . . . 4 . 1 . . . . 5 . . 4 1 . 1 . . Recyclers Shooed 17 | 1 2 . 2 1 . 4 2 . . 2 . . . . . . . . . . . . . . 3 . . . . . . . . Parts Field Recycled . | . . . . . . . . . . . . . . . . . . . . . . . . . . . . . . . . . . Retrieved Matter . | . . . . . . . . . . . . . . . . . . . . . . . . . . . . . . . . . . Parts Self-Destructed 255 | . . 7 . . . . . . . . . . . 34 25 . 42 . . . 61 44 . 42 . . . . . . . . . Prevented 3 | . . . . . . . . . . . . . . . 3 . . . . . . . . . . . . . . . . . . Kills | -11 -10 -10 -8 -8 -8 -6 -6 -6 -6 -6 -5 -5 -5 -5 -5 -5 -4 -4 -4 -4 -4 -4 -4 -3 -3 -3 -3 -2 -2 -2 -1 -1 -1 ------- Run | Yrd Mat Sub Mat Sto Rec Fac Ext Cet Arc Hub Fac Was Fac Upp Upp War Pro Fac Was Fac Upp Upp Zhi Pro Res Arm Lab Res Qua Frg Acc Com Ac0 Combat Hostiles Destroyed 1771 | . 15 11 34 20 14 7 28 6 3 14 7 . 19 8 10 22 10 28 6 6 21 10 . 14 26 35 1 95 34 368 356 503 40 Melee 4 | . . . 2 1 . . . . . . . . 1 . . . . . . . . . . . . . . . . . . . . Guns 45 | . . 6 16 10 13 . . . . . . . . . . . . . . . . . . . . . . . . . . . . Cannons 1427 | . 9 2 8 2 1 6 28 3 3 14 7 . 17 7 10 21 10 28 6 6 16 7 . 8 26 35 1 64 24 350 345 324 39 AOE 223 | . 6 2 8 6 . 1 . . . . . . . . . 1 . . . . 5 3 . 6 . . . 5 . 3 . 177 . Classes Destroyed 35 | 2 7 2 4 1 2 . 2 1 . 1 . . . . 1 2 . 1 1 1 . . . . . . . . 4 3 . . . Worker 49 | . 1 . 8 4 . 2 . . . . . . . . . . . 1 . 2 . . . . 3 . . . 5 3 9 11 . Builder 25 | . 1 . 1 1 . 2 4 . . . 1 . 3 . . . . . . 1 . . . . 2 . . 1 2 . 6 . . Tunneler 6 | 2 1 . 2 . . . . . . . . . . . . . . . . . . . . . . . . . . . 1 . . Hauler 40 | . 2 . 4 6 2 1 . . . 2 3 . 4 . . . . 4 . 1 . . . . 5 . . 4 1 . 1 . . Recycler 53 | 1 4 . 7 4 . 4 4 . . 1 2 . 1 . . . . 3 . 1 . . . . 6 . . . 2 . 5 8 . Carrier 72 | . . . . . . . . 1 . . . . . . . . . . . . . . . . . . . 5 . 21 17 28 . Minesweeper 2 | . . . . . . . . . . . . . . . 1 . . . . . 1 . . . . . . . . . . . . Mechanic 40 | . . . . 1 . . . . . . . . 1 . . . . . . . . . . . . . . 1 . 14 20 3 . Operator 30 | . 2 . 1 2 . 1 2 . 9 . . . 1 . . . . . . . . . . . 1 1 . 2 3 1 2 2 . Drone 2 | . . . . . . . . . . . . . . . . . . . . . . . . . . . . . . 2 . . . Watcher 49 | . 3 . 5 2 . . 2 1 . 1 . . . . . . . 4 . . . . . . 1 3 . 4 1 5 5 12 . Swarmer 177 | . 9 . 8 3 . . 2 . . 1 1 . 1 6 4 7 1 . . . 10 4 . 7 3 12 . 19 1 9 14 55 . Cutter 37 | . . . . . . . . . . . . . . . . . . . . . . . . . . . . . . . 8 29 . Saboteur 47 | . . . . . . . . . . . . . . . . . . . . . . . . . . . . . 1 14 20 12 . Grunt 496 | . 6 . 15 9 . 1 14 . . 5 4 . 1 . 4 7 4 15 . 3 5 . . 4 11 2 . 19 10 116 110 131 . Brawler 71 | . . . 1 . . . 1 . . . . . . . 1 2 2 . . . . . . . . . . 4 2 18 14 26 . Duelist 72 | . . . . . . . 2 . . . . . . . . 1 . 1 . . . . . . . 3 . 4 1 24 9 27 . Protector 60 | . . . 1 . . 1 . . . 1 . . 2 . . . . . . . . . . . . . . 1 . 27 13 14 . Researcher 10 | . . . . . . . . . . . . . . . . . . . . . . . . . . . . . 4 6 . . . Sentry 108 | . . . 8 8 3 1 7 . 3 1 2 . 2 1 1 . 1 2 . 1 2 1 . 1 6 7 . 15 . 14 16 5 . Demolisher 22 | . . . . . 1 . . . . . . . . . . . . . . . . . . . . 1 . 3 . . 1 16 . Specialist 58 | . . . . . . . 1 . . 1 . . 2 . . . . . . . . . . . . . . . . 1 9 44 . Hunter 163 | . . . 1 . 1 5 1 . . 2 . . 2 1 . 2 2 4 . . 4 4 . . 4 4 . 8 5 25 21 67 . Programmer 169 | . . . . . 1 1 . . . . . . 9 . . . . 3 . . . 1 . 2 . 2 . 2 8 43 45 52 . Heavy 9 | . . . . . . . . . . 1 . . . . . . . . . . . . . . . 1 . . . . 4 3 . Behemoth 18 | . . . . . . . . . . . . . . . . . . . . 2 . . . . . 1 . 3 . 1 7 4 . Compactor 6 | . . . . . . . . . . . . . . . . . . . 6 . . . . . . . . . . . . . . Armor Guard 2 | . . . . . . . . . . . . . . . . . . . . . . . . . . 2 . . . . . . . Cetus Guard 6 | . . . . . . . . 6 . . . . . . . . . . . . . . . . . . . . . . . . . M Guard 2 | . . . . . . . . . . . . . . . . . . . . . . . . . . . . . . . . 2 . Enhanced Grunt 23 | . . . . . . . . . . . . . . . . . . . . . . . . . . . . . . . . . 23 Enhanced Sentry 3 | . . . . . . . . . . . . . . . . . . . . . . . . . . . . . . . . . 3 Enhanced Hunter 8 | . . . . . . . . . . . . . . . . . . . . . . . . . . . . . . . . . 8 Lightning 2 | . . . . . . . . . . 2 . . . . . . . . . . . . . . . . . . . . . . . Hotshot 5 | . . . . . . . . . . . . . . . . . . . . . . . . . . . . . . 5 . . . Decapitator 6 | . . . . . . . . . . . . . . . . . . . . . . . . . . . . . . 6 . . . Immortal 4 | . . . . . . . . . . . . . . . . . . . . . . . . . . . . . . 4 . . . Overlord 1 | . . . . . . . . . . . . . . . . . . . . . . . . . . . . . . 1 . . . Tracker 18 | . . . . . . . . . . . . . . . . . . . . . . . . . . . . 5 2 11 . . . Combat Programmer 16 | . . . . . . . . . . . . . . . . . . . . . . . . . . . . 4 2 8 . 2 . Investigator 6 | . . . . . . . . . . . . . . . . . . . . . . . . . . . . . . 4 2 . . Striker 65 | . . . . . . . . . . . . . . . . 2 . . . . . . . . 2 . . 6 . 11 39 5 . Executioner 46 | . . . . . . . . . . . . . . . . 1 . . . . . . . . . . . 2 . 12 26 5 . Alpha 7 5 | . . . . . . . . . . . . . . . . . . . . . . . . . . . . . 1 2 . 2 . Fortress 1 | . . . . . . . . . . . . . . . . . . . . . . . . . . . . . 1 . . . . V-Series 13 | . . . . . . . . . . . . . . . . . . . . . . . . . . . . . . 13 . . . Artisan 1 | . . 1 . . . . . . . . . . . . . . . . . . . . . . . . . . . . . . . Subdweller 19 | . . 11 . . 8 . . . . . . . . . . . . . . . . . . . . . . . . . . . . Assembled 3 | . . . . . . . . . . . . . . . . . . 3 . . . . . . . . . . . . . . . Surgeon 1 | . . . . . . . . . . . . . 1 . . . . . . . . . . . . . . . . . . . . Thug 3 | . . . . . . . . . . . . 1 . . . . . . . . . . . . . . . 2 . . . . . Butcher 2 | . . . . . . . 1 . . . . . . . . 1 . . . . . . . . . . . . . . . . . Martyr 2 | . . . . . . . . . . . . 2 . . . . . . . . . . . . . . . . . . . . . Guerrilla 1 | . . . . . . . 1 . . . . . . . . . . . . . . . . . . . . . . . . . . Best Kill Streak 252 | 2 4 2 5 8 2 3 7 4 12 4 6 . 10 7 3 9 5 9 7 4 10 6 . 9 7 7 1 32 22 53 59 252 6 Combat Bots Only 230 | . 4 2 5 6 2 2 6 3 3 4 2 . 9 7 3 9 5 5 7 3 10 6 . 9 6 6 1 30 6 48 50 230 6 Max Kills in Single Turn 194 | 1 2 2 3 5 2 2 1 1 1 1 2 2 2 1 1 1 1 2 1 1 2 3 . 3 2 2 1 4 2 7 5 194 1 Gunslinging 1 | . . . . . 1 . . . . . . . . . . . . . . . . . . . . . . . . . . . . Exploded 177 | . 2 1 3 3 . 1 . . . . . . . . . 1 . . . . 2 3 . 2 . . . 2 . 2 . 177 . Melee 1 | . . . 1 1 . . . . . . . . 1 . . . . . . . . . . . . . . . . . . . . Uniques/NPCs Destroyed 11 | . . . . . . . . 1 . . . . . . . . . . . . . . . . . . 1 . . 1 . 2 6 A7 (-6/Cetus) A5 (-3/Lab) Superfortress (-2/Protoforge) MAIN.C Shell (-1/Command) MAIN.C (-1/Command) A8 (-1/Access_0) A6 (-1/Access_0) A4 (-1/Access_0) A2 (-1/Access_0) A3 (-1/Access_0) Architect (-1/Access_0) Combat | -11 -10 -10 -8 -8 -8 -6 -6 -6 -6 -6 -5 -5 -5 -5 -5 -5 -4 -4 -4 -4 -4 -4 -4 -3 -3 -3 -3 -2 -2 -2 -1 -1 -1 -------- Run | Yrd Mat Sub Mat Sto Rec Fac Ext Cet Arc Hub Fac Was Fac Upp Upp War Pro Fac Was Fac Upp Upp Zhi Pro Res Arm Lab Res Qua Frg Acc Com Ac0 Hostile Shots Fired 2285 | . 73 37 131 76 63 125 201 37 4 55 19 . 67 31 23 95 13 37 . 18 59 24 . 57 26 72 5 121 52 286 162 98 218 Missed 1047 | . 14 8 32 22 21 54 94 13 2 7 7 . 31 14 6 41 4 16 . 8 30 20 . 27 10 50 3 47 25 151 67 47 176 Intercepted 6 | . . . . . . . . . . . . . . . . . . . . . . . . . . . . . . . . 6 . Hits 1238 | . 59 29 99 54 42 71 107 24 2 48 12 . 36 17 17 54 9 21 . 10 29 4 . 30 16 22 2 74 27 135 95 51 42 Melee 12 | . . . . . . . . . . 1 . . . . . . . 2 . . . . . . . . . . . 1 . 6 2 Projectile 1226 | . 59 29 99 54 42 71 107 24 2 47 12 . 36 17 17 54 9 19 . 10 29 4 . 30 16 22 2 74 27 134 95 45 40 AOE 13 | . . . . . . 3 . . . 1 . . . . . . . . . 2 . . . . . . . 1 . 1 1 4 . Critical Strikes 59 | . . 1 5 2 1 1 3 5 . 4 1 . 2 1 1 . 1 2 . . 3 . . 1 1 . 1 4 2 7 3 7 . Actively Blocked 7 | . . . . . . . . . . . . . . . . . . . . . . . . . . . . . . 4 . 3 . Part Disruptions 3 | . . . . . . . . . . . . . . . . . . . . . . . . . . . . . . 2 . 1 . Actively Blocked 1 | . . . . . . . . . . . . . . . . . . . . . . . . . . . . . . . . 1 . Damage Taken 19505 | . 448 504 1153 706 604 843 734 500 48 1195 339 . 822 330 320 1294 178 417 . 424 276 47 . 353 309 613 142 872 809 2211 1455 889 670 Core 1992 | . 71 80 184 57 42 100 22 . . 102 38 . 20 . 12 85 18 38 . 16 11 . . 24 10 11 24 12 97 394 285 193 46 Absorbed by Shields 8461 | . 97 121 285 140 226 99 652 94 . 12 . . . . . 36 . . . . 240 44 . 306 261 81 . 910 . 1890 1494 913 560 Reduced by Siege Mode 318 | . . . . . . . . . . 111 . . 24 . . . . . . . . . . . . . . 10 . 65 108 . . Redirected to Core 702 | . . . . . . . . . . . . . . . . . . . . . . . . . . . . . 97 327 184 94 . Redirected to Shielding 3 | . . . . . . . . . . . . . . . . . . . . . . . . . . . . . . . . . 3 Regen/Repaired (Parts) 12702 | . 153 . 234 189 . 503 186 531 107 218 810 716 96 697 68 138 562 539 16 34 812 . . 70 448 66 869 554 389 1675 517 1432 73 Core Remaining (%) 71 | 100 . 39 . . 48 . . . . 73 . . . . . . 82 . . . . . . 92 . . 87 . . 65 . . 56 Volleys Fired 3537 | 10 85 46 136 57 99 56 148 34 33 60 33 5 56 26 34 66 24 55 13 24 35 16 . 20 54 76 14 135 79 588 549 699 172 Largest 3 | 2 2 2 2 2 2 1 1 1 1 1 1 2 1 1 1 1 1 1 1 1 1 1 . 1 1 2 1 1 3 2 1 1 2 Hottest 942 | 70 130 110 112 141 122 60 59 88 69 69 69 189 69 69 69 69 69 69 69 69 80 80 . 80 69 163 200 100 218 206 98 942 942 Shots Fired 3803 | 20 144 70 241 99 141 56 148 34 33 60 33 6 56 25 33 66 24 55 13 24 35 16 . 20 54 78 14 135 81 575 549 691 174 Gun 440 | 20 20 39 184 63 109 . . . . . . . . . . . . . . . . . . . . . . . . . . . 5 Cannon 3288 | . 108 8 45 29 32 56 148 30 33 60 33 6 56 25 33 66 24 55 13 24 31 14 . 18 54 78 14 132 81 575 549 689 169 Launcher 52 | . 5 11 12 7 . . . 4 . . . . . . . . . . . . 4 2 . 2 . . . 3 . . . 2 . Special 23 | . 11 12 . . . . . . . . . . . . . . . . . . . . . . . . . . . . . . . Kinetic 2630 | 10 128 33 153 70 54 49 . . . . 33 5 56 25 33 66 24 55 13 24 31 14 . 18 54 76 1 . 1 366 549 675 14 Thermal 705 | 10 11 26 76 15 85 7 148 26 33 60 . 1 . . . . . . . . . . . . . . 12 18 . 7 . 15 155 Explosive 47 | . 5 11 12 7 . . . . . . . . . . . . . . . . 4 2 . 2 . . . 3 . . . 1 . Electromagnetic 267 | . . . . 7 2 . . 8 . . . . . . . . . . . . . . . . . 2 1 114 80 53 . . . Slashing 5 | . . . . . . . . . . . . . . . . . . . . . . . . . . . . . . . . . 5 Entropic 149 | . . . . . . . . . . . . . . . . . . . . . . . . . . . . . . 149 . . . Robot Hit Streak 241 | 5 8 19 8 22 15 8 10 11 6 14 11 13 22 9 12 7 6 14 22 16 9 5 . 6 19 12 6 21 10 103 136 63 241 Robot Miss Streak 6 | 3 5 2 5 4 3 3 5 3 6 2 2 . 2 1 3 4 3 2 2 3 3 3 . 3 3 5 1 5 5 5 1 2 . Penetration Max 4 | . . . . . . . . . . . 1 1 1 1 1 2 . 1 1 . 1 1 . . 1 2 . 1 1 4 2 2 . Secondary Targets 2 | . . . 1 . 1 . . . . . . . . . . . . . . . . . . . . . . . . . . . . Max Gunslinging Chain 1 | . . . 1 . 1 . . . . . . . . . . . . . . . . . . . . . . . . . . . . Capacitor 296 | . . . . . . . . . . . . . . . . . . . . . . . . . . . . 77 78 2 . 13 126 Shots Hit Robots 2881 | 11 73 40 175 74 77 34 104 20 17 38 23 6 49 15 19 26 17 48 12 20 27 12 . 14 47 61 5 119 70 488 478 584 78 Core Hits 1940 | 4 30 18 117 66 31 15 37 17 11 19 10 4 26 8 9 24 11 37 6 11 29 10 . 21 39 42 3 96 48 306 271 411 153 Critical Kills 98 | . . 1 . 1 1 . . . . . . 2 6 . . . 1 . . . 1 . . . 1 . . 6 4 10 18 19 27 Critical Parts Destroyed 110 | . . . . 1 1 . 2 . . . 2 . 12 1 . 1 . . . 1 . . . . . . . . . 13 13 10 53 Critical Strikes 278 | . 2 2 3 2 8 . 2 . . . 2 2 18 1 . 1 1 . . 1 1 . . . 4 4 . 6 4 36 37 31 110 Burn 9 | . . . 3 . 6 . . . . . . . . . . . . . . . . . . . . . . . . . . . . Meltdown 14 | . . 1 . 1 . . . . . . . . . . . . . . . . . . . . . . . 6 4 2 . . . Destroy 223 | . . 1 . . 2 . 2 . . . 2 2 15 1 . 1 1 . . 1 1 . . . 1 . . . . 24 32 31 106 Blast 28 | . 2 . . . . . . . . . . . . . . . . . . . . . . . 3 4 . . . 10 5 . 4 Smash 4 | . . . . 1 . . . . . . . . 3 . . . . . . . . . . . . . . . . . . . . Melee Attacks 69 | . . . 25 14 1 1 . . . . . . 9 . . . . . . . . . . . . . . . 6 11 . . 2 Kinetic 3 | . . . . . . . . . . . . . . . . . . . . . . . . . . . . . 3 . . . . Impact 17 | . . . . 6 1 1 . . . . . . 9 . . . . . . . . . . . . . . . . . . . . Slashing 49 | . . . 25 8 . . . . . . . . . . . . . . . . . . . . . . . . 3 11 . . 2 Piercing . | . . . . . . . . . . . . . . . . . . . . . . . . . . . . . . . . . . Sneak Attacks 25 | . . . 12 7 . 1 . . . . . . 2 . . . . . . . . . . . . . . . 3 . . . . Combat Hostiles . | . . . . . . . . . . . . . . . . . . . . . . . . . . . . . . . . . . Follow-up Attacks . | . . . . . . . . . . . . . . . . . . . . . . . . . . . . . . . . . . Damage Inflicted 756763 | 103 1457 898 4733 2932 1585 2778 7954 2062 1767 3633 2866 611 5360 1691 2267 4550 1728 7293 2307 2688 3290 1490 . 2756 7281 8111 865 21376 9120 163456 162654 291888 23213 Guns 5140 | 103 149 557 2128 796 1407 . . . . . . . . . . . . . . . . . . . . . . . . . . . . Cannons 589913 | . 992 160 577 408 178 2220 7954 1657 1767 3633 2866 611 4802 1691 2183 4186 1728 7104 2208 2688 2712 1320 . 1968 7143 8111 865 20408 8524 162680 162552 140804 23213 Explosions 158436 | . 316 181 942 979 . 467 . 405 . . . . . . 84 364 . 189 99 . 578 170 . 788 138 . . 968 . 582 102 151084 . Melee 3259 | . . . 1086 734 . 91 . . . . . . 558 . . . . . . . . . . . . . . . 596 194 . . . Ramming 15 | . . . . 15 . . . . . . . . . . . . . . . . . . . . . . . . . . . . . Kinetic 478797 | 42 1141 448 1794 835 477 2158 . . . . 2866 566 4802 1691 2183 4186 1728 7104 2208 2688 2712 1320 . 1968 7143 8026 . . 80 116535 162552 140494 1050 Thermal 196615 | 61 . 269 911 196 1108 529 7954 1645 1767 3633 . 45 . . 55 364 . . 99 . . . . 474 3 . 865 2898 . 182 . 151394 22163 Explosive 4803 | . 316 181 942 979 . . . . . . . . . . . . . 189 . . 578 170 . 314 . . . 632 . 400 102 . . Electromagnetic 34191 | . . . . 173 . . . 417 . . . . . . 29 . . . . . . . . . 135 85 . 17846 8524 6982 . . . Impact 951 | . . . . 302 . 91 . . . . . . 558 . . . . . . . . . . . . . . . . . . . . Slashing 2228 | . . . 1086 432 . . . . . . . . . . . . . . . . . . . . . . . . 516 194 . . . Piercing . | . . . . . . . . . . . . . . . . . . . . . . . . . . . . . . . . . . Entropic 39163 | . . . . . . . . . . . . . . . . . . . . . . . . . . . . . . 39163 . . . Highest Corruption 23 | . 2 2 4 5 6 3 . . . 3 . . 5 5 5 5 . . 11 11 11 11 11 11 . . . 7 9 23 2 4 . Average Corruption 5 | . 2 1 3 4 5 2 . . . 2 . . 3 5 5 5 . . 5 11 11 11 11 11 . . . 6 6 13 2 2 . Corruption Purged 15 | . . 2 . . . 3 . . . . . . . . . . . . . . . . . . . . . . 6 . . 4 . Corruption Blocked . | . . . . . . . . . . . . . . . . . . . . . . . . . . . . . . . . . . Effects 626 | . 37 5 51 39 163 5 . . . 2 . . 17 18 14 1 . . 3 15 24 16 3 11 . . . 15 12 123 11 41 . Message Errors 141 | . 8 . 12 15 28 1 . . . 1 . . 2 7 4 1 . . 1 2 9 2 . 3 . . . 3 1 29 2 10 . Matter Fused 159 | . 14 2 11 7 45 2 . . . 1 . . 5 5 4 . . . . 5 9 4 . 2 . . . . 2 28 4 9 . Heat Flow Errors 87 | . 5 . 3 3 27 . . . . . . . 5 1 4 . . . . 4 4 4 1 2 . . . 4 3 9 4 4 . Energy Discharges 59 | . 2 3 4 3 18 . . . . . . . 2 2 . . . . 1 2 . 2 1 1 . . . 3 2 10 . 3 . Parts Rejected 10 | . . . . 1 . . . . . . . . . . . . . . . . . 1 . 1 . . . . . 4 . 3 . Parts Fused 3 | . . . 1 1 . . . . . . . . . . . . . . . . . . . . . . . . . 1 . . . Data Loss (minor) 92 | . 3 . 11 6 28 2 . . . . . . 3 2 . . . . 1 2 1 2 1 1 . . . 2 4 18 1 4 . Data Loss (major) 20 | . 1 . 3 1 6 . . . . . . . . . 1 . . . . . 1 . . . . . . 1 . 6 . . . Misfires 12 | . 3 . 4 1 3 . . . . . . . . . . . . . . . . . . . . . . 1 . . . . . Alerts 12 | . 1 . 2 . 6 . . . . . . . . . . . . . . . . . . 1 . . . . . 2 . . . Misdirections 3 | . . . . . . . . . . . . . . . . . . . . . . 1 . . . . . . . 2 . . . Weapon Failures 28 | . . . . 1 2 . . . . . . . . 1 1 . . . . . . . . . . . . 1 . 14 . 8 . Overload Shots 21 | . . . . . . . . . . . . . . . . . . . . . . . . . . . . . . . . 2 19 Effects 2 | . . . . . . . . . . . . . . . . . . . . . . . . . . . . . . . . . 2 Heat Surge 2 | . . . . . . . . . . . . . . . . . . . . . . . . . . . . . . . . . 2 Overflow Damage 140117 | . 42 . 163 273 38 432 846 43 360 435 535 . 843 144 392 311 100 777 . 139 265 84 . 102 1010 685 20 2306 1379 37986 43650 46526 231 Projectiles 124138 | . 24 . . . 38 330 846 43 360 435 535 . 623 144 387 302 100 777 . 139 233 84 . 102 1003 685 20 2267 1171 37961 43638 31660 231 Explosions 15130 | . 18 . 39 37 . 41 . . . . . . . . 5 9 . . . . 32 . . . 7 . . 39 . 25 12 14866 . Melee 849 | . . . 124 236 . 61 . . . . . . 220 . . . . . . . . . . . . . . . 208 . . . . Knockbacks 645 | . 15 . 18 9 1 8 . . . . 10 . 16 2 4 15 4 19 . 1 5 3 . 6 18 11 . . . 161 182 130 7 Impact 2 | . . . . . . 1 . . . . . . 1 . . . . . . . . . . . . . . . . . . . . Kinetic 565 | . 15 . 17 9 1 7 . . . . 7 . 14 1 4 13 4 18 . 1 5 3 . 6 15 11 . . . 138 153 116 7 Secondary 78 | . . . 1 . . . . . . . 3 . 1 1 . 2 . 1 . . . . . . 3 . . . . 23 29 14 . Self-Inflicted Damage 475 | . 13 . 22 . . 47 . . . . . . . . . 59 . . . . . . . . 72 . 93 . 97 54 18 . . Shots 10 | . 2 . 1 . . 1 . . . . . . . . . 1 . . . . . . . . 1 . 1 . 1 1 1 . . Rammed . | . . . . . . . . . . . . . . . . . . . . . . . . . . . . . . . . . . Targets Rammed 2 | . . . . 2 . . . . . . . . . . . . . . . . . . . . . . . . . . . . . Kicked . | . . . . . . . . . . . . . . . . . . . . . . . . . . . . . . . . . . Crushed 2 | . . . . 2 . . . . . . . . . . . . . . . . . . . . . . . . . . . . . Highest Temperature 387 | 60 255 . 187 277 245 51 133 308 . 321 31 12 286 168 265 327 135 370 3 170 246 203 231 97 7 258 20 274 387 213 346 223 203 Average Temperature 78 | 24 59 . 25 61 95 14 31 119 . 85 22 8 85 84 70 99 55 54 3 35 101 89 131 68 7 59 12 50 59 66 104 87 128 Received Heat Transfer 2798 | . 110 37 510 324 40 140 209 . 18 39 127 . 132 48 36 94 . 78 . 60 16 . . 43 49 45 . 8 466 141 8 12 8 Effects 12 | . . . . . . . . 2 . . . . . . . 2 . . . . . . . . . . . . . . 5 3 . Energy Bleed 3 | . . . . . . . . . . . . . . . . 2 . . . . . . . . . . . . . . 1 . . Interference 9 | . . . . . . . . 2 . . . . . . . . . . . . . . . . . . . . . . 4 3 . Siege Activations 30 | . . . . . . . . . . 3 . 1 2 . . . . . . . . . . . . . . 3 1 15 2 3 . Total Turns 3833 | . . . . . . . . . . 49 . 6 27 . . . . . . . . . . . . . . 29 9 449 2312 952 . Longest Duration 1592 | . . . . . . . . . . 37 . 6 23 . . . . . . . . . . . . . . 23 9 85 1592 837 . Martial Activations . | . . . . . . . . . . . . . . . . . . . . . . . . . . . . . . . . . . Shielding Activations . | . . . . . . . . . . . . . . . . . . . . . . . . . . . . . . . . . . Robots Disrupted 1 | . . . . . . . . . . . . . . . . . . . . . . . . . . . . 1 . . . . . Combat Hostiles 1 | . . . . . . . . . . . . . . . . . . . . . . . . . . . . 1 . . . . . Robots Corrupted 69 | . . . . 1 . 1 . 3 . . . . 2 1 . . . . . . . . . . . . . 26 7 14 11 3 . Combat Hostiles 56 | . . . . . . . . 3 . . . . 1 1 . . . . . . . . . . . . . 22 5 13 9 2 . Parts Fried 423 | . . . . 2 . 4 3 2 . . . . 1 . . 1 . . . . . . . . 2 . . 158 118 107 23 2 . Impact Corruptions 95 | . . . . 7 . 2 . . . . 2 . 7 2 . . . 1 . . . . . . 1 . . . . 22 35 16 . Robots Melted 15 | . . 1 . 1 . . . . . . . . . . . . . . . . . . . . . . . 6 4 2 . . 1 Combat Hostiles 13 | . . 1 . 1 . . . . . . . . . . . . . . . . . . . . . . . 4 4 2 . . 1 Parts Melted 111 | 1 . . 6 1 8 . 4 . 3 4 . . . . . 1 . . . . . . . . . . 3 20 3 5 17 . 35 Heat Transferred 25975 | 185 . 335 2035 333 2479 312 4013 950 950 1875 . 37 . . 80 351 . . 50 . . . . 300 50 . 350 1261 . 100 . 1625 8304 Parts Sabotaged . | . . . . . . . . . . . . . . . . . . . . . . . . . . . . . . . . . . Parts Stolen . | . . . . . . . . . . . . . . . . . . . . . . . . . . . . . . . . . . Parts Stripped 18 | . . . . . . . . . . . . . . . . . . . . . . . . . . . . . 18 . . . . Power Chain Reactions 13 | . . . . . . . . 1 . . . . . . 1 4 . 1 1 . . . . 1 1 . . 2 . 1 . . . Alert | -11 -10 -10 -8 -8 -8 -6 -6 -6 -6 -6 -5 -5 -5 -5 -5 -5 -4 -4 -4 -4 -4 -4 -4 -3 -3 -3 -3 -2 -2 -2 -1 -1 -1 ------- Run | Yrd Mat Sub Mat Sto Rec Fac Ext Cet Arc Hub Fac Was Fac Upp Upp War Pro Fac Was Fac Upp Upp Zhi Pro Res Arm Lab Res Qua Frg Acc Com Ac0 Maximum Alert Level 5 | . 1 . 2 1 . 3 4 4 2 5 5 2 5 . . . . 3 1 1 . . . . 3 5 . 5 5 5 5 5 . Low Security (%) 31 | 100 36 . 57 48 100 . 11 . . . . 48 3 . . . . 37 . 67 . . . . . . . 8 . . . . . Level 1 18 | . 63 . 26 51 . 34 49 . . 7 . 41 39 . . . . 39 100 32 . . . . 8 . . 3 . . . . . Level 2 7 | . . . 16 . . 64 2 . 100 13 . 9 14 . . . . 12 . . . . . . 28 30 . 30 . . . . . Level 3 6 | . . . . . . . 17 97 . 10 21 . 13 . . . . 10 . . . . . . 62 31 . 5 . . . . . Level 4 3 | . . . . . . . 18 2 . 57 35 . 7 . . . . . . . . . . . . 34 . 11 . . . . . Level 5 16 | . . . . . . . . . . 3 43 . 21 . . . . . . . . . . . . 3 . 5 100 33 1 97 . High Security 15 | . . . . . . . . . . 7 . . . . . . . . . . . . . . . . . 35 . 66 98 2 . Max Security . | . . . . . . . . . . . . . . . . . . . . . . . . . . . . . . . . . . Sterilizations 1 | . . . . . . . . . . . . . . . . . . . . . . . . . . . . . . . 1 . . Peak Influence 17885 | 5 326 . 511 342 119 703 1549 1122 631 1765 1804 444 1681 . . . . 921 354 274 . . . . 959 1608 . 3243 2922 12973 17885 12063 . Initial 11446 | . 3 . . 206 108 667 130 860 422 206 1100 444 19 . . . . 14 322 221 . . . . 135 499 . . 1824 1620 7783 11446 . Average 2352 | 2 173 . 186 194 17 479 584 896 587 1226 1407 217 760 . . . . 289 335 172 . . . . 721 960 . 1271 2436 6262 13288 11610 . Influence Increases 63551 | 15 633 . 1173 856 419 1015 1990 627 289 1849 1060 . 2306 336 501 787 237 1217 54 283 469 290 . 300 1282 1475 . 3559 1644 11785 10132 15592 1376 Destroy 0b10 Robot/C 36480 | . 300 . 660 400 120 140 940 260 80 680 380 . 900 180 240 520 200 500 . 120 420 220 . 280 520 700 . 1980 760 7400 7240 10340 . Destroy 0b10 Robot/NC 1930 | 15 70 . 150 100 50 55 60 10 45 40 45 . 105 . 5 . 10 65 . 25 5 . . . 90 20 . 65 70 260 310 260 . Destroy Leader 5114 | . 70 . 178 116 . 44 114 20 . 130 68 . 188 30 30 . 20 116 . 42 40 40 . 20 142 184 . 456 114 1170 1212 570 . Allied During Kill 4000 | . . . . . 10 14 706 290 125 850 447 . 951 126 136 207 7 18 . . 4 30 . . . 79 . . . . . . . Successful Hack 320 | . 21 . 24 33 5 11 24 . . . 30 . 49 . . . . . . 12 . . . . . 10 . . 42 26 33 . . Select Force Hacks 200 | . . . . . 150 . . . . 50 . . . . . . . . . . . . . . . . . . . . . . . Disable Machine 2265 | . 45 . 30 60 75 30 60 15 30 60 15 . . . . . . 60 . 30 . . . . 105 210 . 120 195 480 120 375 150 Anti-Garrison Action 1100 | . . . . . . . . . . . . . . . . . . 150 . . . . . . 200 . . 350 . 200 150 50 . Destroy Structure 10357 | . 37 . 86 72 9 71 41 17 9 39 60 . 98 . . . . 188 54 54 . . . . 210 242 . 573 433 2129 992 3732 1211 Advance Influence 650 | . . . . . . 650 . . . . . . . . . . . . . . . . . . . . . . . . . . . Partial Spotted 15 | . . . . . . . . . . . . . . . . . . . . . . . . . . . . . . . . . 15 Lose Combat Pursuer 1020 | . 90 . 45 75 . . 45 15 . . 15 . 15 . 90 60 . 120 . . . . . . 15 30 . 15 30 120 75 165 . Active Sensor Use 100 | . . . . . . . . . . . . . . . . . . . . . . . . . . . . . . . . 100 . Influence Decreases 62411 | 10 396 242 684 1067 654 790 720 1110 753 675 1791 1242 673 938 440 1316 805 319 659 325 365 272 396 100 529 836 1592 316 2005 1694 5220 6499 26978 Entered New Map 51370 | . 2 117 . 283 170 26 138 678 633 385 901 826 9 616 202 1120 591 9 599 95 103 72 396 . 65 454 1592 . 1419 1262 5190 6439 26978 Time Decay 8630 | 10 374 125 534 533 484 434 502 392 100 190 270 416 404 302 238 96 214 290 60 230 262 160 . 100 464 342 . 316 286 422 20 60 . Search Patrol Dispatched 300 | . . . . . . 300 . . . . . . . . . . . . . . . . . . . . . . . . . . . Lost Part 60 | . 20 . . 10 . . . . . . . . . . . 20 . . . . . . . . . . . . . 10 . . . Lost Ally 760 | . . . . . . 30 80 40 20 100 20 . 260 20 . 80 . 20 . . . 40 . . . 40 . . . . 10 . . Purge Threat 1291 | . . . 150 241 . . . . . . 600 . . . . . . . . . . . . . . . . . 300 . . . . Squads Dispatched 267 | . 3 . 3 2 . 3 5 . . 8 2 . 11 . . . . 7 . 2 . . . . 5 6 . 15 8 100 81 6 . Investigation 14 | . . . . . . . 1 . . 2 . . 1 . . . . 1 . 1 . . . . 4 . . 1 . 1 1 1 . Extermination 13 | . . . . . . 1 . . . . . . 2 . . . . 2 . 1 . . . . . 2 . . 3 2 . . . Reinforcement 30 | . 3 . 2 1 . 1 3 . . 4 2 . 4 . . . . 2 . . . . . . 1 1 . 1 1 1 3 . . Assault 179 | . . . 1 . . . 1 . . 2 . . 3 . . . . 2 . . . . . . . 3 . . 1 84 77 5 . Garrison 3 | . . . . 1 . 1 . . . . . . 1 . . . . . . . . . . . . . . . . . . . . Intercept 28 | . . . . . . . . . . . . . . . . . . . . . . . . . . . . 13 3 12 . . . Searches Triggered 2 | . . . . . . 2 . . . . . . . . . . . . . . . . . . . . . . . . . . . Construction Impeded 4 | . . . 1 . . . 1 . . . . . 2 . . . . . . . . . . . . . . . . . . . . Haulers Reinforced 9 | . . . . . . . . . . 1 2 . 1 . . . . 2 . . . . . . 1 . . 1 . . 1 . . Active Scanning Responses 1 | . . . . . . . . . . . . . . . . . . . . . . . . . . . . . . . . 1 . Cargo Convoy Interrupts 1 | . . . . . . . . . . . . . 1 . . . . . . . . . . . . . . . . . . . . Stealth | -11 -10 -10 -8 -8 -8 -6 -6 -6 -6 -6 -5 -5 -5 -5 -5 -5 -4 -4 -4 -4 -4 -4 -4 -3 -3 -3 -3 -2 -2 -2 -1 -1 -1 --------- Run | Yrd Mat Sub Mat Sto Rec Fac Ext Cet Arc Hub Fac Was Fac Upp Upp War Pro Fac Was Fac Upp Upp Zhi Pro Res Arm Lab Res Qua Frg Acc Com Ac0 Distress Signals 47 | . . . 4 1 1 1 2 2 . 1 2 . 5 . . . . 4 . 1 . . . . 8 . . 7 4 1 1 2 . Communications Jammed 24 | . . . . . . . . . . . . . . . . . . . . . . . . . . . . . . 24 . . . Distress Signals 24 | . . . . . . . . . . . . . . . . . . . . . . . . . . . . . . 24 . . . Times Spotted 1622 | . 31 10 53 30 12 10 54 14 13 36 18 . 39 8 13 37 6 37 5 7 19 8 . 13 32 34 1 97 47 378 315 180 65 Peak Tracking Total 25 | . 3 2 6 6 2 3 6 5 1 6 5 . 14 3 5 12 2 8 3 3 9 4 . 7 5 5 1 16 4 16 10 25 4 Tactical Retreats 51 | . 2 . 2 3 . . 3 1 . . 1 . 1 . 5 4 . 5 . . . . . . 1 2 . 1 2 7 5 6 . Traps | -11 -10 -10 -8 -8 -8 -6 -6 -6 -6 -6 -5 -5 -5 -5 -5 -5 -4 -4 -4 -4 -4 -4 -4 -3 -3 -3 -3 -2 -2 -2 -1 -1 -1 ------- Run | Yrd Mat Sub Mat Sto Rec Fac Ext Cet Arc Hub Fac Was Fac Upp Upp War Pro Fac Was Fac Upp Upp Zhi Pro Res Arm Lab Res Qua Frg Acc Com Ac0 Traps Triggered 35 | . 1 . 5 2 . . 4 . . 1 1 . 3 . . . . 3 . . . . . . 3 . . . . 7 2 3 . Indirectly . | . . . . . . . . . . . . . . . . . . . . . . . . . . . . . . . . . . Trap Hack Attempts . | . . . . . . . . . . . . . . . . . . . . . . . . . . . . . . . . . . Triggered . | . . . . . . . . . . . . . . . . . . . . . . . . . . . . . . . . . . Disarmed . | . . . . . . . . . . . . . . . . . . . . . . . . . . . . . . . . . . Reprogrammed . | . . . . . . . . . . . . . . . . . . . . . . . . . . . . . . . . . . Reused . | . . . . . . . . . . . . . . . . . . . . . . . . . . . . . . . . . . Traps Extracted . | . . . . . . . . . . . . . . . . . . . . . . . . . . . . . . . . . . Installed 3 | . . . . . . . . . . . . . . . . . . . . . 3 . . . . . . . . . . . . Triggered . | . . . . . . . . . . . . . . . . . . . . . . . . . . . . . . . . . . Machines | -11 -10 -10 -8 -8 -8 -6 -6 -6 -6 -6 -5 -5 -5 -5 -5 -5 -4 -4 -4 -4 -4 -4 -4 -3 -3 -3 -3 -2 -2 -2 -1 -1 -1 ---------- Run | Yrd Mat Sub Mat Sto Rec Fac Ext Cet Arc Hub Fac Was Fac Upp Upp War Pro Fac Was Fac Upp Upp Zhi Pro Res Arm Lab Res Qua Frg Acc Com Ac0 Machines Disabled 199 | . 3 1 2 4 5 2 5 1 2 4 1 . . 1 1 3 1 5 . 2 . . . 3 7 15 3 9 14 51 16 27 11 Max in Single Turn 4 | . 1 1 1 1 1 1 1 1 1 1 . . . 1 1 1 1 1 . 1 . . . 1 2 1 1 2 1 4 1 2 1 Garrison Access 13 | . . . . . . 1 . . . . . . 1 . . . . 1 . . . . . . 1 . . 3 1 1 4 . . Phase Generator 1 | . . . . . . . . . . . . . . . . . . . . . . . . . . . . . . . . 1 . Network Hub 2 | . . . . . . . . . . 2 . . . . . . . . . . . . . . . . . . . . . . . Machines Repaired 1 | . . . . . . . . . . . . . . . . . . . . . . . . . 1 . . . . . . . . Machines Dismantled 1 | . . . . 1 . . . . . . . . . . . . . . . . . . . . . . . . . . . . . Machines Sabotaged 1 | . . . . . . . . . . 1 . . . . . . . . . . . . . . . . . . . . . . . Overloaded Fab Kills . | . . . . . . . . . . . . . . . . . . . . . . . . . . . . . . . . . . Hacking | -11 -10 -10 -8 -8 -8 -6 -6 -6 -6 -6 -5 -5 -5 -5 -5 -5 -4 -4 -4 -4 -4 -4 -4 -3 -3 -3 -3 -2 -2 -2 -1 -1 -1 --------- Run | Yrd Mat Sub Mat Sto Rec Fac Ext Cet Arc Hub Fac Was Fac Upp Upp War Pro Fac Was Fac Upp Upp Zhi Pro Res Arm Lab Res Qua Frg Acc Com Ac0 Machines Accessed 117 | . 7 2 13 10 15 4 7 . . 2 5 . 5 1 . 4 . 2 . 3 1 . 4 1 8 3 1 1 8 7 2 . 1 Terminals 65 | . 6 . 8 7 4 2 6 . . 2 3 . 4 . . . . . . 2 . . . 1 4 3 . . 7 4 2 . . Fabricators . | . . . . . . . . . . . . . . . . . . . . . . . . . . . . . . . . . . Repair Stations 9 | . 1 . 2 2 . . 1 . . . . . . . . . . 1 . . . . . . . . . . . 2 . . . Recycling Units 13 | . . . 1 1 9 1 . . . . 1 . . . . . . . . . . . . . . . . . . . . . . Scanalyzers 6 | . . . 2 . . . . . . . . . . . . . . 1 . 1 . . . . 2 . . . . . . . . Garrison Access 8 | . . . . . . 1 . . . . 1 . 1 . . . . . . . . . . . 2 . . 1 1 1 . . . Total Hacks 363 | . 20 5 45 32 52 14 13 . . 2 14 . 24 1 . 5 . 11 . 18 1 . 17 7 21 6 1 3 23 14 7 . 7 Successful 182 | . 11 5 28 21 22 6 6 . . 2 7 . 9 1 . 5 . 4 . 3 1 . 17 7 3 1 1 1 6 5 3 . 7 Failed 181 | . 9 . 17 11 30 8 7 . . . 7 . 15 . . . . 7 . 15 . . . . 18 5 . 2 17 9 4 . . Catastrophic 50 | . 3 . 5 4 6 1 1 . . . 3 . 4 . . . . . . 5 . . . . 5 2 . . 7 3 1 . . Database Lockouts . | . . . . . . . . . . . . . . . . . . . . . . . . . . . . . . . . . . Manual 144 | . 12 . 16 13 20 7 2 1 . 2 11 . 6 . . . . . . 3 . . . . 17 4 . 3 15 8 3 1 . Terminals 190 | . 15 . 21 18 13 12 10 . . 2 11 . 22 . . . . . . 6 . . . 7 14 6 . . 19 7 7 . . Fabricators . | . . . . . . . . . . . . . . . . . . . . . . . . . . . . . . . . . . Repair Stations 45 | . 5 . 11 11 . . 3 . . . . . . . . . . 10 . . . . . . . . . . . 5 . . . Recycling Units 39 | . . . 3 3 31 1 . . . . 1 . . . . . . . . . . . . . . . . . . . . . . Scanalyzers 25 | . . . 10 . . . . . . . . . . . . . . 1 . 12 . . . . 2 . . . . . . . . Garrison Access 19 | . . . . . . 1 . . . . 2 . 2 . . . . . . . . . . . 5 . . 3 4 2 . . . Terminal Hacks 102 | . 4 5 8 11 8 4 3 . . . 6 . 8 1 . 5 . . . . 1 . 17 7 . 1 1 . 3 1 1 . 7 Record 31 | . . 4 . . 6 2 . . . . . . . 1 . 4 . . . . . . 5 7 . 1 1 . . . . . . Part Schematic 8 | . 1 . . 2 . . . . . . . . 1 . . . . . . . . . 4 . . . . . . . . . . Robot Analysis 12 | . 2 . 2 3 . 1 . . . . . . . . . . . . . . . . 4 . . . . . . . . . . Prototype ID Bank 10 | . 1 . 2 . . . 1 . . . . . 2 . . . . . . . . . 4 . . . . . . . . . . Open Door 6 | . . . . 1 . . 2 . . . . . . . . 1 . . . . 1 . . . . . . . 1 . . . . Branch Access Points 4 | . . . . . . 1 . . . . 1 . 1 . . . . . . . . . . . . . . . . . 1 . . Unreport Threat 9 | . . . 1 2 . . . . . . 4 . . . . . . . . . . . . . . . . . 2 . . . . Locate Traps 5 | . . . 1 2 . . . . . . 1 . 1 . . . . . . . . . . . . . . . . . . . . Security Status 1 | . . . . . . . . . . . . . 1 . . . . . . . . . . . . . . . . . . . . Transport Status 1 | . . . . . . . . . . . . . 1 . . . . . . . . . . . . . . . . . . . . Recall Investigation 1 | . . . 1 . . . . . . . . . . . . . . . . . . . . . . . . . . . . . . Hauler Manifests 2 | . . . 1 1 . . . . . . . . . . . . . . . . . . . . . . . . . . . . . Registered Components 1 | . . . . . . . . . . . . . 1 . . . . . . . . . . . . . . . . . . . . Proto ID Catalog 2 | . . 1 . . . . . . . . . . . . . . . . . . . . . . . . . . . 1 . . . Release Object 2 | . . . . . 2 . . . . . . . . . . . . . . . . . . . . . . . . . . . . Gate Test 138-A 1 | . . . . . . . . . . . . . . . . . . . . . . . . . . . . . . . . . 1 Gate Test 138-B 2 | . . . . . . . . . . . . . . . . . . . . . . . . . . . . . . . . . 2 Gate Test 138-C 1 | . . . . . . . . . . . . . . . . . . . . . . . . . . . . . . . . . 1 Gate Test 138-END 3 | . . . . . . . . . . . . . . . . . . . . . . . . . . . . . . . . . 3 Fabricator Hacks . | . . . . . . . . . . . . . . . . . . . . . . . . . . . . . . . . . . Repair Station Hacks 31 | . 4 . 10 8 . . 2 . . . . . . . . . . 4 . . . . . . . . . . . 3 . . . Scan Component 16 | . 2 . 5 4 . . 1 . . . . . . . . . . 2 . . . . . . . . . . . 2 . . . Repair 15 | . 2 . 5 4 . . 1 . . . . . . . . . . 2 . . . . . . . . . . . 1 . . . Recycling Unit Hacks 9 | . . . 1 . 7 . . . . . 1 . . . . . . . . . . . . . . . . . . . . . . Retrieve Components 9 | . . . 1 . 7 . . . . . 1 . . . . . . . . . . . . . . . . . . . . . . Scanalyzer 12 | . . . 8 . . . . . . . . . . . . . . . . 3 . . . . 1 . . . . . . . . Insert Component 8 | . . . 4 . . . . . . . . . . . . . . . . 3 . . . . 1 . . . . . . . . Analyze 4 | . . . 4 . . . . . . . . . . . . . . . . . . . . . . . . . . . . . . Garrison Access Hacks 3 | . . . . . . 1 . . . . . . 1 . . . . . . . . . . . . . . . 1 . . . . Seal Access 3 | . . . . . . 1 . . . . . . 1 . . . . . . . . . . . . . . . 1 . . . . Unauthorized Hacks 25 | . 3 . 1 2 7 1 1 . . 2 . . . . . . . . . . . . . . 2 . . 1 2 1 2 . . Terminals 15 | . 3 . . 1 2 1 1 . . 2 . . . . . . . . . . . . . . 1 . . . 2 . 2 . . Assimilate 1 | . . . . . . . . . . . . . . . . . . . . . . . . . . . . . . . 1 . . Botnet 12 | . 3 . . 1 2 1 1 . . . . . . . . . . . . . . . . . 1 . . . 2 . 1 . . Sabotage 2 | . . . . . . . . . . 2 . . . . . . . . . . . . . . . . . . . . . . . Fabricators . | . . . . . . . . . . . . . . . . . . . . . . . . . . . . . . . . . . Repair Stations . | . . . . . . . . . . . . . . . . . . . . . . . . . . . . . . . . . . Recycling Units 7 | . . . 1 1 5 . . . . . . . . . . . . . . . . . . . . . . . . . . . . Mask 2 | . . . 1 1 . . . . . . . . . . . . . . . . . . . . . . . . . . . . . Tunnel 5 | . . . . . 5 . . . . . . . . . . . . . . . . . . . . . . . . . . . . Scanalyzers . | . . . . . . . . . . . . . . . . . . . . . . . . . . . . . . . . . . Garrison Access 3 | . . . . . . . . . . . . . . . . . . . . . . . . . 1 . . 1 . 1 . . . Jam 3 | . . . . . . . . . . . . . . . . . . . . . . . . . 1 . . 1 . 1 . . . Data Cores Recovered 8 | . . . . 1 . 1 . . . . . . 2 . . . . . . . . . . . 1 1 . . 2 . . . . Used 2 | . . . . . . . . . . . . . 1 . . . . . . . . . . . . . . . 1 . . . . Hacking Detections 69 | . 6 . 13 9 11 3 5 . . . 3 . 4 . . . . 1 . 2 . . . . 6 . . 1 4 . 1 . . Full Trace Events 11 | . . . . . 8 . . . . . . . 1 . . . . . . 1 . . . . . . . . . . 1 . . Feedback Events . | . . . . . . . . . . . . . . . . . . . . . . . . . . . . . . . . . . Feedback Blocked . | . . . . . . . . . . . . . . . . . . . . . . . . . . . . . . . . . . Robot Schematics Acquired 6 | . . . . . . . . . . . . . . . . . . . . . . . . . . . . . 2 4 . . . Robots Built . | . . . . . . . . . . . . . . . . . . . . . . . . . . . . . . . . . . Authchips . | . . . . . . . . . . . . . . . . . . . . . . . . . . . . . . . . . . Time . | . . . . . . . . . . . . . . . . . . . . . . . . . . . . . . . . . . Total Robot Build Rating . | . . . . . . . . . . . . . . . . . . . . . . . . . . . . . . . . . . Part Schematics Acquired 32 | . 1 . 4 2 . . . . . . . . 1 . . . . . . . . . 4 . . . . . 7 13 . . . Parts Built . | . . . . . . . . . . . . . . . . . . . . . . . . . . . . . . . . . . Authchips . | . . . . . . . . . . . . . . . . . . . . . . . . . . . . . . . . . . Time . | . . . . . . . . . . . . . . . . . . . . . . . . . . . . . . . . . . Total Part Build Rating . | . . . . . . . . . . . . . . . . . . . . . . . . . . . . . . . . . . Parts Repaired 15 | . 2 . 5 4 . . 1 . . . . . . . . . . 2 . . . . . . . . . . . 1 . . . Time 554 | . 52 . 178 174 . . 19 . . . . . . . . . . 100 . . . . . . . . . . . 31 . . . Parts Recycled . | . . . . . . . . . . . . . . . . . . . . . . . . . . . . . . . . . . Recycled Matter . | . . . . . . . . . . . . . . . . . . . . . . . . . . . . . . . . . . Retrieved Matter . | . . . . . . . . . . . . . . . . . . . . . . . . . . . . . . . . . . Retrieved Components 19 | . . . 10 . 6 . . . . . 3 . . . . . . . . . . . . . . . . . . . . . . Parts Scanalyzed 4 | . . . 4 . . . . . . . . . . . . . . . . . . . . . . . . . . . . . . Part Schematics Acquired 4 | . . . 4 . . . . . . . . . . . . . . . . . . . . . . . . . . . . . . Parts Damaged . | . . . . . . . . . . . . . . . . . . . . . . . . . . . . . . . . . . Bothacking | -11 -10 -10 -8 -8 -8 -6 -6 -6 -6 -6 -5 -5 -5 -5 -5 -5 -4 -4 -4 -4 -4 -4 -4 -3 -3 -3 -3 -2 -2 -2 -1 -1 -1 ------------ Run | Yrd Mat Sub Mat Sto Rec Fac Ext Cet Arc Hub Fac Was Fac Upp Upp War Pro Fac Was Fac Upp Upp Zhi Pro Res Arm Lab Res Qua Frg Acc Com Ac0 Used RIF Installer . | . . . . . . . . . . . . . . . . . . . . . . . . . . . . . . . . . . Robots Hacked . | . . . . . . . . . . . . . . . . . . . . . . . . . . . . . . . . . . Non-combat . | . . . . . . . . . . . . . . . . . . . . . . . . . . . . . . . . . . Combat . | . . . . . . . . . . . . . . . . . . . . . . . . . . . . . . . . . . Robot Hacks Applied . | . . . . . . . . . . . . . . . . . . . . . . . . . . . . . . . . . . Relay Couplers Released 7 | . . . . . . 3 . . . . . . . . . . . 1 . . . . . . . . . 2 . . 1 . . Machine Destruction 7 | . . . . . . 3 . . . . . . . . . . . 1 . . . . . . . . . 2 . . 1 . . Fabnet Peak Effective % . | . . . . . . . . . . . . . . . . . . . . . . . . . . . . . . . . . . Robots Rewired 33 | . . . . . 10 . 15 . . . . . . . . . 1 . . . 2 . . . . 5 . . . . . . . Allies Hacked 4 | . . . . . . . . . . . . . 1 . . . . . . . . 1 . . . 2 . . . . . . . Hacks Repelled . | . . . . . . . . . . . . . . . . . . . . . . . . . . . . . . . . . . Allies | -11 -10 -10 -8 -8 -8 -6 -6 -6 -6 -6 -5 -5 -5 -5 -5 -5 -4 -4 -4 -4 -4 -4 -4 -3 -3 -3 -3 -2 -2 -2 -1 -1 -1 -------- Run | Yrd Mat Sub Mat Sto Rec Fac Ext Cet Arc Hub Fac Was Fac Upp Upp War Pro Fac Was Fac Upp Upp Zhi Pro Res Arm Lab Res Qua Frg Acc Com Ac0 Total Allies 66 | . . . . . 10 . 22 5 . . . 20 . . . . 1 . . . 2 . . . . 5 . . . . 1 . . Largest Group 26 | . . . . . 10 10 15 17 15 14 7 26 23 5 4 4 1 1 . . 2 2 . . . 3 . . . . 1 . . Highest-Rated Group 1302 | . . . . . 150 150 557 952 767 747 542 1302 1156 280 234 232 47 47 . . 94 94 . . . 170 . . . . 45 . . Highest-Rated Ally 159 | . . . . . 27 27 159 159 96 96 96 96 96 96 96 96 47 47 . . 47 47 . . . 64 . . . . 45 . . Total Orders 11 | . . . . . 4 . . 4 . 3 . . . . . . . . . . . . . . . . . . . . . . . STAY 5 | . . . . . 1 . . 2 . 2 . . . . . . . . . . . . . . . . . . . . . . . FOLLOW 4 | . . . . . 1 . . 2 . 1 . . . . . . . . . . . . . . . . . . . . . . . PICKUP 2 | . . . . . 2 . . . . . . . . . . . . . . . . . . . . . . . . . . . . Ally Attacks 616 | . . . . . . 6 121 46 19 114 42 . 189 7 9 55 . 3 . . . 3 . . . 2 . . . . . . . Total Damage 13921 | . . . . . . 104 2926 582 354 2859 1157 . 4414 62 273 945 . 73 . . . 97 . . . 75 . . . . . . . Kills 116 | . . . . . . 1 20 7 1 26 15 . 38 1 2 4 . . . . . 1 . . . . . . . . . . . Allies Corrupted 6 | . . . . . . . . . . . . . 1 . . . . . . . . 2 . . . 3 . . . . . . . Allies Melted 1 | . . . . . . . . . . . . . . . . . . . . . . . . . . . . 1 . . . . . Intel | -11 -10 -10 -8 -8 -8 -6 -6 -6 -6 -6 -5 -5 -5 -5 -5 -5 -4 -4 -4 -4 -4 -4 -4 -3 -3 -3 -3 -2 -2 -2 -1 -1 -1 ------- Run | Yrd Mat Sub Mat Sto Rec Fac Ext Cet Arc Hub Fac Was Fac Upp Upp War Pro Fac Was Fac Upp Upp Zhi Pro Res Arm Lab Res Qua Frg Acc Com Ac0 Active Infowar (turns) 27008 | 11 948 5498 2762 857 . 808 170 . . . 1 . 188 . . . . 2 . . . . . . 1167 762 503 1111 632 3020 3482 4143 943 Optics 15638 | . . 1 . . . . . . . . . . . . . . . . . . . . . . 1041 762 503 1111 632 3020 3482 4143 943 Sensors 5168 | . . 4680 487 . . . . . . . 1 . . . . . . . . . . . . . . . . . . . . . . A.S.S. 6126 | . . . . . . . . . . . . . . . . . . . . . . . . . . . . . . 60 3387 2679 . Terrain 1329 | . . 817 461 . . . 51 . . . . . . . . . . . . . . . . . . . . . . . . . . Structural 51 | . . . . . . . 51 . . . . . . . . . . . . . . . . . . . . . . . . . . Seismic 6273 | 11 948 . 2275 856 . 808 67 . . . . . 11 . . . . . . . . . . . 779 518 . . . . . . . T.N.C. 178 | . . . . 1 . . . . . . . . 177 . . . . . . . . . . . . . . . . . . . . Machine Analysis 1 | . . . . . . . 1 . . . . . . . . . . . . . . . . . . . . . . . . . . Cloaking 2320 | . . . . . . . . . . . . . . . . . . 2 . . . . . . . 2 . . . 800 1109 210 197 Jamming 971 | . . . . . . . . . . . . . . . . . . . . . . . . . . 1 . . . 965 . . 5 ECM 2 | . . . . . . . . . . . . . . . . . . . . . . . . . 2 . . . . . . . . Robot Analysis Total 12 | . 2 . 2 3 . 1 . . . . . . . . . . . . . . . . 4 . . . . . . . . . . Derelict Logs Recovered 8 | . . 2 . . . . . . . . . . . 2 1 . 1 . . . 2 . . . . . . . . . . . . Drone Launches . | . . . . . . . . . . . . . . . . . . . . . . . . . . . . . . . . . . Drone Recoveries . | . . . . . . . . . . . . . . . . . . . . . . . . . . . . . . . . . . Exploration | -11 -10 -10 -8 -8 -8 -6 -6 -6 -6 -6 -5 -5 -5 -5 -5 -5 -4 -4 -4 -4 -4 -4 -4 -3 -3 -3 -3 -2 -2 -2 -1 -1 -1 ------------- Run | Yrd Mat Sub Mat Sto Rec Fac Ext Cet Arc Hub Fac Was Fac Upp Upp War Pro Fac Was Fac Upp Upp Zhi Pro Res Arm Lab Res Qua Frg Acc Com Ac0 Turns Passed 50124 | 79 3637 7269 3768 1621 5974 1073 1356 922 215 412 582 1009 970 677 503 737 677 1012 128 486 573 331 70 280 1167 762 503 1111 632 3020 3482 4143 943 Spaces Moved 38774 | 40 1244 2032 1342 549 2862 770 1045 376 207 342 663 780 1008 545 693 1024 833 868 177 478 1028 770 159 611 2091 1104 332 1522 907 2739 2123 4546 2964 Core . | . . . . . . . . . . . . . . . . . . . . . . . . . . . . . . . . . . Treads 19555 | . 665 2032 . 29 55 103 . 306 207 342 663 760 1008 44 . 688 833 868 177 478 125 . . . . . . 931 907 2739 2123 3472 . Legs 1405 | 40 342 . . . 154 . 799 70 . . . . . . . . . . . . . . . . . . . . . . . . . Wheels 3634 | . 237 . 1342 520 1528 7 . . . . . . . . . . . . . . . . . . . . . . . . . . . Hover 79 | . . . . . 61 18 . . . . . . . . . . . . . . . . . . . . . . . . . . . Flight 14101 | . . . . . 1064 642 246 . . . . 20 . 501 693 336 . . . . 903 770 159 611 2091 1104 332 591 . . . 1074 2964 Fastest Speed 12 | 120 120 320 175 190 74 49 49 49 54 54 54 70 70 54 54 54 54 54 54 54 38 38 38 35 38 38 38 38 38 38 38 25 12 Average Speed 78 | 120 252 320 195 196 138 85 61 54 54 54 66 70 70 55 54 54 54 54 54 54 39 38 38 37 38 38 38 38 38 39 38 35 16 Slowest Speed 320 | 120 320 320 210 243 279 190 104 104 54 54 70 70 70 70 54 54 54 54 54 54 54 38 38 38 38 38 38 38 38 155 38 38 25 Overloaded Moves 6 | . . . . . . . . . . . . . . . . . . . . . . . . 6 . . . . . . . . . Propulsion Burnouts . | . . . . . . . . . . . . . . . . . . . . . . . . . . . . . . . . . . Robots Hopped 18 | . . . . . 2 . . . . . . . . . . . . . . . . . . . 9 3 . 2 . . . 2 . Potential Cave-ins 76 | . . 9 . . . . . . . . . . . . . . . . . 2 . . . . . . . . . 62 3 . . Cave-ins Triggered 1 | . . . . . . . . . . . . . . . . . . . . . . . . . . . . . . 1 . . . Teleports 3 | . . . . . . . . . . . . . . . . . . . . . . . . . . 1 . . . . . 1 1 Exploration Rate (%) 67 | 3 99 85 90 87 99 17 87 67 81 18 24 95 29 68 89 90 90 21 98 12 95 82 60 76 57 58 94 64 74 50 60 77 95 Regions Visited 33 Branch Regions 21 Pre-discovered Areas 12 | . . 1 . . 5 . . . . . . . . . 1 . 1 . . . . . 3 1 . . . . . . . . . Known Exits Taken 10 | . . 1 1 1 . 1 . . . . . . 1 . . . . . . . . . . 1 1 . 1 . . 1 1 . . Unknown Exits Taken 19 | 1 1 . . . 1 . 1 1 1 1 . . . 1 1 1 1 . . 1 1 1 1 . . 1 . 1 1 . . 1 . Scrap Searched 15 | . . 2 . . . . . . . . . . . 2 4 . . . . . 3 2 . 2 . . . . . . . . . Spaces Dug 176 | . 2 . 6 3 1 3 . . . 2 3 . 2 4 3 7 4 14 . 4 . . . . 1 3 . 3 . 61 21 18 11 Terrain Destroyed 4329 | . 36 89 88 74 7 66 30 9 9 18 24 . 28 17 52 49 25 114 34 36 105 49 . 51 112 113 4 238 229 443 333 1494 353 Melee 11 | . . . 6 2 1 . . . . . . . . . . . . . . . . . . . . . . . . . . . 2 Projectile 2571 | . 7 1 1 4 6 19 30 7 9 18 24 . 28 17 38 41 25 87 21 36 72 34 . 32 88 113 4 196 131 345 301 616 220 AOE 1517 | . 29 88 81 68 . 47 . 2 . . . . . . 14 8 . 27 13 . 33 15 . 19 24 . . 42 98 13 18 878 . Terrain Rammed . | . . . . . . . . . . . . . . . . . . . . . . . . . . . . . . . . . . Walls Destroyed . | . . . . . . . . . . . . . . . . . . . . . . . . . . . . . . . . . . Machines Disabled . | . . . . . . . . . . . . . . . . . . . . . . . . . . . . . . . . . . Actions | -11 -10 -10 -8 -8 -8 -6 -6 -6 -6 -6 -5 -5 -5 -5 -5 -5 -4 -4 -4 -4 -4 -4 -4 -3 -3 -3 -3 -2 -2 -2 -1 -1 -1 --------- Run | Yrd Mat Sub Mat Sto Rec Fac Ext Cet Arc Hub Fac Was Fac Upp Upp War Pro Fac Was Fac Upp Upp Zhi Pro Res Arm Lab Res Qua Frg Acc Com Ac0 Total 56439 | 52 1566 2696 2233 956 4726 1134 1610 1063 281 513 778 1237 1201 895 787 1150 1043 1378 201 691 1153 790 167 636 2403 1358 696 2050 1214 4655 4807 6925 3394 Wait 11492 | . 160 551 549 235 1559 194 180 618 34 67 7 414 60 319 57 16 165 392 8 168 65 . . 3 173 69 318 333 124 983 2077 1548 46 Move 38704 | 39 1243 2031 1341 548 2857 769 1044 375 206 341 663 779 1007 544 692 1023 832 868 176 477 1027 769 158 610 2072 1096 331 1517 906 2737 2122 4541 2963 Hop 18 | . . . . . 2 . . . . . . . . . . . . . . . . . . . 9 3 . 2 . . . 2 . Pick Up 454 | 2 24 13 45 14 8 20 14 11 4 11 16 6 8 1 2 14 4 6 . 1 2 1 1 . 20 11 7 14 16 78 8 46 26 Fast Attach 368 | 1 7 5 16 13 22 25 13 3 . 6 15 5 22 1 . 4 2 22 2 10 3 1 4 1 17 10 5 10 25 45 3 13 37 Attach 144 | . 1 1 6 2 1 10 2 . . 1 5 . 2 . . 2 . 3 . . . . . . 3 1 4 5 8 38 10 16 23 Detach 78 | . . . 1 . . 6 . . . 1 4 2 3 . . . . 2 . . . . . . 1 1 3 3 6 20 4 8 13 Swap 405 | . 31 31 55 35 10 12 5 6 . 9 5 6 4 . 2 9 2 3 . . 3 2 . 2 13 20 6 8 3 33 18 20 52 Drop 746 | . 15 18 59 24 36 40 28 16 4 17 28 11 30 4 . 16 6 26 2 11 5 1 4 . 36 21 8 23 39 116 10 32 60 Fire 3537 | 10 85 46 136 57 99 56 148 34 33 60 33 5 56 26 34 66 24 55 13 24 35 16 . 20 54 76 14 135 79 588 549 699 172 Melee 69 | . . . 25 14 1 1 . . . . . . 9 . . . . . . . . . . . . . . . 6 11 . . 2 Ram . | . . . . . . . . . . . . . . . . . . . . . . . . . . . . . . . . . . Kick . | . . . . . . . . . . . . . . . . . . . . . . . . . . . . . . . . . . Crush 2 | . . . . 2 . . . . . . . . . . . . . . . . . . . . . . . . . . . . . Escape Stasis 68 | . . . . 4 . . 53 . . . . . . . . . . . . . . . . . 1 2 . . . 3 5 . . Rewire 325 | . . . . . 131 . 122 . . . . 9 . . . . 8 . . . 10 . . . . 45 . . . . . . . Trap 3 | . . . . . . . . . . . . . . . . . . . . . 3 . . . . . . . . . . . . Miscellaneous 26 | . . . . 8 . 1 1 . . . 2 . . . . . . 1 . . . . . . 4 3 . . 2 3 1 . . Route ------- -11/Scrapyard -10/Materials (discovered 6 exits: [*Mat x3] / [*Min x2] / *Sub) -10/Subcaves (discovered 3 exits: *Mat x2 / Rec) -8/Materials (discovered 4 exits: [*Fac x2] / *Sto x2) -8/Storage (discovered 2 exits: [*Fac] / *Rec) -8/Recycling -6/Factory (discovered 4 exits: Low x2 / *Ext x2) -6/Extension (discovered 2 exits: *Fac / *Cet) -6/Cetus (discovered 2 exits: *Fac / [*Arc]) -6/Archives (discovered 3 exits: *Fac / *Hub x2) -6/Hub_04(d) (discovered 2 exits: *Fac x2) -5/Factory (discovered 2 exits: Upp x2) -5/Waste -5/Factory (discovered 2 exits: *Upp x2) -5/Upper Caves -5/Upper Caves (discovered 2 exits: *Fac / *War) -5/Warlord -4/Proximity Caves -4/Factory (discovered 2 exits: Res / *Upp) -4/Waste -4/Factory (discovered 3 exits: *Res / *Upp x2) -4/Upper Caves -4/Upper Caves (discovered 2 exits: *Res / *Zhi) -4/Zhirov -3/Proximity Caves -3/Research (discovered 5 exits: *Res x2 / *Arm / *Tes x2) -3/Armory (discovered 2 exits: *Res / *Lab) -3/Lab -2/Research (discovered 4 exits: *Acc x2 / *Qua x2) -2/Quarantine (discovered 3 exits: *Acc / [*Sec] / *Frg) -2/Protoforge -1/Access -1/Command (discovered 3 exits: [Sur x2] / *Ac0) -1/Access_0 0b11 Command History --------- Turn | Location | Event 7 | -11/Scrapyard | Discovered new exit (range 3) 80 | -11/Scrapyard | Entered Materials 116 | -10/Materials | Discovered new exit (range 16) 193 | -10/Materials | Discovered new exit (range 6) 210 | -10/Materials | Discovered new exit (range 3) 348 | -10/Materials | Build established: Mutant 734 | -10/Materials | Discovered new exit (range 13) 1165 | -10/Materials | Discovered new exit (range 3) 1642 | -10/Materials | Discovered new exit (range 6) 2315 | -10/Materials | Repaired Lgt. Treads 2343 | -10/Materials | Repaired Lgt. Cannon 3717 | -10/Materials | Entered Subcaves 3718 | -10/Subcaves | Approached by a straggling Scientist 3797 | -10/Subcaves | Discovered new exit (range 5) 3814 | -10/Subcaves | Learned location of Zion (-7) 3814 | -10/Subcaves | Met a Zionite searching for "candidates" 3836 | -10/Subcaves | A swath of the cavern ceiling suddenly collapsed 5514 | -10/Subcaves | Visited 4L-MR0's lab 5547 | -10/Subcaves | Found Cargo Legs 5708 | -10/Subcaves | Ambushed by Subdweller buried in earth 6199 | -10/Subcaves | Shifting Twisted Machinery released Mak. System Restoration Module 6200 | -10/Subcaves | Shifting Twisted Machinery released Flamer 7098 | -10/Subcaves | Visited Clippyterm 7108 | -10/Subcaves | Identified exit to Materials 7108 | -10/Subcaves | Identified exit to Recycling 7978 | -10/Subcaves | Ambushed by Subdweller buried in earth 7992 | -10/Subcaves | Ambushed by Subdweller buried in earth 9730 | -10/Subcaves | Core integrity fell below 50% 10986 | -10/Subcaves | Entered Materials 10986 | -8/Materials | Evolved 4 slots: Propulsion x2, Utility x2 10987 | -8/Materials | Identified exit to Storage 11429 | -8/Materials | Build established: Scavenger-Mutant 12245 | -8/Materials | Repaired Shield Generator 12381 | -8/Materials | Discovered new exit (range 2) 12969 | -8/Materials | Repaired Broken Sub. Beam Cannon 13003 | -8/Materials | Repaired Lgt. Treads 13057 | -8/Materials | Repaired Broken Sub. Laser 13090 | -8/Materials | Repaired Imp. Treads 13457 | -8/Materials | Discovered new exit (range 16) 14186 | -8/Materials | First assault squad dispatched 14754 | -8/Materials | Entered Storage 15116 | -8/Storage | Build established: Mutant 15441 | -8/Storage | Discovered new exit (range 16) 15456 | -8/Storage | Garrison activated, responded to threat 15844 | -8/Storage | Repaired Shield Generator 15905 | -8/Storage | Repaired Enh. Autogun 16063 | -8/Storage | Repaired Hrd. Medium Armor Plating 16108 | -8/Storage | Repaired Imp. Cooling System 16368 | -8/Storage | Used back door to open Recycling access 16368 | -8/Storage | Discovered exit to Recycling (range 4) 16375 | -8/Storage | Entered Recycling 16845 | -8/Recycling | Core integrity fell below 50% 17386 | -8/Recycling | Discovered new exit (range 16) 18236 | -8/Recycling | Found Prototype Device 18236 | -8/Recycling | Identified Scrap Engine 18243 | -8/Recycling | Entered Scraplab 18749 | -8/Recycling | Build established: Construct 21637 | -8/Recycling | Build established: Commander-Construct 22349 | -8/Recycling | Entered Factory 22349 | -6/Factory | Accompanied by 10 allies 22349 | -6/Factory | Evolved 4 slots: Propulsion x1, Utility x2, Weapon x1 22445 | -6/Factory | Identified exit to Lower Caves 22445 | -6/Factory | Identified exit to Extension 22542 | -6/Factory | Lost 6 allies 22644 | -6/Factory | Garrison activated, responded to threat 22699 | -6/Factory | Search patrols dispatched 22933 | -6/Factory | Build established: Construct 23049 | -6/Factory | Search patrols dispatched 23422 | -6/Factory | Entered Extension 23688 | -6/Extension | Repaired Hardlight Generator 23871 | -6/Extension | Rescued A7 23963 | -6/Extension | Rescued a captive Derelict 23964 | -6/Extension | Rescued a captive Derelict 24012 | -6/Extension | Rescued a captive Derelict 24147 | -6/Extension | Disrupted transfer network 24198 | -6/Extension | Spotted B-75 Beast 24215 | -6/Extension | Allies destroyed B-75 Beast 24252 | -6/Extension | Build established: Commander-Construct 24268 | -6/Extension | Spotted B-75 Beast 24282 | -6/Extension | Allies destroyed B-75 Beast 24314 | -6/Extension | Lost 3 allies 24472 | -6/Extension | First assault squad dispatched 24561 | -6/Extension | Rescued a captive Derelict 24563 | -6/Extension | Lost 4 allies 24631 | -6/Extension | Rescued a captive Derelict 24632 | -6/Extension | Rescued a captive Derelict 24673 | -6/Extension | Discovered new exit (range 10) 24673 | -6/Extension | Discovered new exit (range 6) 24778 | -6/Extension | Entered Cetus 24778 | -6/Cetus | Accompanied by 13 allies (A7) 24783 | -6/Cetus | Acquired a Cetus Manufacturing Module code from A7 24786 | -6/Cetus | Spotted Cetus Guard 24787 | -6/Cetus | Spotted Cetus Guard 24794 | -6/Cetus | Destroyed Cetus Guard 24794 | -6/Cetus | Spotted Cetus Guard 24796 | -6/Cetus | Destroyed Cetus Guard 24796 | -6/Cetus | Spotted Cetus Guard 24801 | -6/Cetus | Allies destroyed Cetus Guard 24806 | -6/Cetus | Destroyed Cetus Guard 25335 | -6/Cetus | Started Cetus Manufacturing Module 25360 | -6/Cetus | Manufactured an Enhanced Grunt 25385 | -6/Cetus | Manufactured an Enhanced Grunt 25396 | -6/Cetus | Escorted A7 to Cetus Mainframe 25410 | -6/Cetus | Manufactured an Enhanced Grunt 25435 | -6/Cetus | Manufactured an Enhanced Grunt 25460 | -6/Cetus | Manufactured an Enhanced Grunt 25483 | -6/Cetus | Discovered new exit (range 16) 25497 | -6/Cetus | Spotted Cetus Guard 25497 | -6/Cetus | Spotted Cetus Guard 25500 | -6/Cetus | Spotted Cetus Guard 25500 | -6/Cetus | Spotted Cetus Guard 25506 | -6/Cetus | Destroyed Cetus Guard 25509 | -6/Cetus | Allies destroyed Cetus Guard 25512 | -6/Cetus | Destroyed Cetus Guard 25527 | -6/Cetus | Destroyed Cetus Guard 25528 | -6/Cetus | Security sweep announced 25546 | -6/Cetus | Discovered new exit (range 16) 25552 | -6/Cetus | Met Revision 17 25627 | -6/Cetus | Murdered A7 25629 | -6/Cetus | Extracted ID and sensor layout for unrecognized location from A7's data core 25634 | -6/Cetus | Found Prototype Protection 25634 | -6/Cetus | Identified Med. Regenerative Plating 25700 | -6/Cetus | Entered Archives 25700 | -6/Archives | Accompanied by 15 allies 25733 | -6/Archives | Discovered new exit (range 16) 25743 | -6/Archives | Discovered new exit (range 14) 25793 | -6/Archives | Discovered new exit (range 15) 25915 | -6/Archives | Entered Hub_04(d) 25915 | -6/Hub_04(d) | Accompanied by 14 allies 25999 | -6/Hub_04(d) | Discovered new exit (range 6) 26016 | -6/Hub_04(d) | Lost 4 allies 26045 | -6/Hub_04(d) | Network Hub disabled 26045 | -6/Hub_04(d) | Network Hub disabled 26098 | -6/Hub_04(d) | Discovered new exit (range 12) 26127 | -6/Hub_04(d) | Spotted Lightning 26128 | -6/Hub_04(d) | Spotted Lightning 26141 | -6/Hub_04(d) | Spotted Lightning 26160 | -6/Hub_04(d) | Destroyed Lightning 26172 | -6/Hub_04(d) | Destroyed Lightning 26176 | -6/Hub_04(d) | Allies destroyed Lightning 26189 | -6/Hub_04(d) | Found Prototype Device 26189 | -6/Hub_04(d) | Identified Exp. Phase Shifter 26196 | -6/Hub_04(d) | Found Prototype Processor 26203 | -6/Hub_04(d) | Found Prototype Energy Cannon 26205 | -6/Hub_04(d) | Identified Exp. Targeting Computer 26265 | -6/Hub_04(d) | First assault squad dispatched 26298 | -6/Hub_04(d) | High security lockdown imminent 26327 | -6/Hub_04(d) | Entered Factory 26327 | -5/Factory | Accompanied by 7 allies 26327 | -5/Factory | Evolved 2 slots: Utility x1, Weapon x1 26681 | -5/Factory | Identified exit to Upper Caves 26909 | -5/Factory | Sucked down chute 26909 | -5/Factory | Entered Waste 26910 | -5/Waste | Joined by Warlord forces that had cleared the area 26979 | -5/Waste | 6 allies followed down the chute 27019 | -5/Waste | Found Gamma Bomb Array 27075 | -5/Waste | Discovered new exit (range 12) 27918 | -5/Waste | Entered Factory 27918 | -5/Factory | Accompanied by 23 allies 27971 | -5/Factory | Found Prototype Launcher 27971 | -5/Factory | Identified Mni. Smartbomb Launcher 28230 | -5/Factory | Garrison activated, responded to threat 28398 | -5/Factory | P-70 Sage assimilated allied 3F-NEF(s) 28518 | -5/Factory | First assault squad dispatched 28593 | -5/Factory | Cargo convoy interrupted 28649 | -5/Factory | Destroyed 9 combat bots 28680 | -5/Factory | Found Prototype Launcher 28680 | -5/Factory | Identified Point Singularity Launcher 28682 | -5/Factory | Lost 10 allies 28714 | -5/Factory | Found PL-3XN's Ring of Power 28888 | -5/Factory | Entered Upper Caves 28888 | -5/Upper Caves | Accompanied by 5 allies 28971 | -5/Upper Caves | Build established: Construct 29309 | -5/Upper Caves | Learned Factory security intel 29354 | -5/Upper Caves | Spotted B-75 Beast 29389 | -5/Upper Caves | Allies destroyed B-75 Beast 29442 | -5/Upper Caves | Attracted the attention of an 0b10 checkpoint 29461 | -5/Upper Caves | Learned location of 1 exit from Factory 29472 | -5/Upper Caves | Destroyed 7 combat bots 29536 | -5/Upper Caves | Discovered new exit (range 9) 29565 | -5/Upper Caves | Entered another Upper Caves area 29565 | -5/Upper Caves | Accompanied by 4 allies 29579 | -5/Upper Caves | Learned location of Warlord (-5) 29585 | -5/Upper Caves | Discovered new exit (range 7) 29784 | -5/Upper Caves | Attracted the attention of an 0b10 checkpoint 29810 | -5/Upper Caves | Discovered new exit (range 7) 30068 | -5/Upper Caves | Entered Warlord 30068 | -5/Warlord | Accompanied by 4 allies 30087 | -5/Warlord | System corruption cleaned by Quarantine Array 30203 | -5/Warlord | Found Prototype Processor 30203 | -5/Warlord | Identified Exp. Core Analyzer 30206 | -5/Warlord | Found Prototype Hackware 30292 | -5/Warlord | Learned 4 Research zone layouts 30292 | -5/Warlord | Learned 4 Command zone layouts 30293 | -5/Warlord | Learned Research terminal intel 30294 | -5/Warlord | Learned Quarantine emergency access door positions 30349 | -5/Warlord | Warlord's base attacked by MAIN.C 30371 | -5/Warlord | Met Warlord 30424 | -5/Warlord | Found Prototype Energy Gun 30426 | -5/Warlord | Found Prototype Energy Gun 30429 | -5/Warlord | Found Prototype Energy Cannon 30431 | -5/Warlord | Found Prototype Energy Cannon 30491 | -5/Warlord | Identified Vortex Shotgun (x2) 30494 | -5/Warlord | Identified Vortex Cannon (x2) 30498 | -5/Warlord | Found Exp. Phase Shifter 30609 | -5/Warlord | Destroyed 9 combat bots 30647 | -5/Warlord | Warlord forces counterattacked 30671 | -5/Warlord | Spotted Striker 30680 | -5/Warlord | Spotted Striker 30689 | -5/Warlord | Destroyed Striker 30697 | -5/Warlord | Destroyed Striker 30718 | -5/Warlord | Destroyed 8 combat bots 30736 | -5/Warlord | Lost 5 allies 30737 | -5/Warlord | Discovered new exit (range 14) 30749 | -5/Warlord | Spotted Executioner 30751 | -5/Warlord | Destroyed Executioner 30785 | -5/Warlord | Found Prototype Device 30786 | -5/Warlord | Identified Adv. Kinecellerator 30805 | -5/Warlord | Entered Proximity Caves 30806 | -4/Proximity Caves | Lost 6 allies 31126 | -4/Proximity Caves | Found Prototype Processor 31126 | -4/Proximity Caves | Identified Exp. Armor Integrity Analyzer 31132 | -4/Proximity Caves | Found Exp. Armor Integrity Analyzer 31276 | -4/Proximity Caves | Discovered new exit (range 9) 31283 | -4/Proximity Caves | Learned location of Testing (-3) 31482 | -4/Proximity Caves | Entered Factory 31482 | -4/Factory | Accompanied by 1 ally 31482 | -4/Factory | Evolved 2 slots: Power x1, Utility x1 31483 | -4/Factory | Identified exit to Research 31986 | -4/Factory | Discovered new exit (range 11) 31998 | -4/Factory | Found Unknown Device 31998 | -4/Factory | Identified Launcher Loader 32062 | -4/Factory | Repaired Imp. Weapon Cycler 32111 | -4/Factory | Repaired Weapon Cycler 32213 | -4/Factory | Found Prototype Processor 32213 | -4/Factory | Identified Exp. Melee Analysis Suite 32290 | -4/Factory | Assembled infested ambush trap array 32494 | -4/Factory | Sucked down chute 32494 | -4/Factory | Entered Waste 32500 | -4/Waste | Found Broken Heavy Servo Lattice 32504 | -4/Waste | Spotted C-40 Crusher 32504 | -4/Waste | Spotted C-40 Crusher 32505 | -4/Waste | Destroyed C-40 Crusher 32509 | -4/Waste | EMP discharged 32510 | -4/Waste | Destroyed C-40 Crusher 32531 | -4/Waste | Destroyed 7 combat bots 32537 | -4/Waste | Spotted C-40 Crusher 32541 | -4/Waste | Destroyed C-40 Crusher 32544 | -4/Waste | Spotted C-40 Crusher 32545 | -4/Waste | Spotted C-40 Crusher 32545 | -4/Waste | Destroyed C-40 Crusher 32547 | -4/Waste | Spotted C-40 Crusher 32550 | -4/Waste | Destroyed C-40 Crusher 32553 | -4/Waste | Destroyed C-40 Crusher 32609 | -4/Waste | EMP discharged 32609 | -4/Waste | System corruption reached 10% 32613 | -4/Waste | Discovered new exit (range 12) 32622 | -4/Waste | Entered Factory 32816 | -4/Factory | Discovered new exit (range 9) 32842 | -4/Factory | Identified System Mapper 32845 | -4/Factory | Identified EMDS 33000 | -4/Factory | Spotted B-86 Titan 33012 | -4/Factory | Destroyed B-86 Titan 33076 | -4/Factory | Spotted B-86 Titan 33081 | -4/Factory | Destroyed B-86 Titan 33096 | -4/Factory | Discovered exit to Research (range 15) 33097 | -4/Factory | Discovered new exit (range 13) 33108 | -4/Factory | Entered Upper Caves 33320 | -4/Upper Caves | Destroyed 7 combat bots 33324 | -4/Upper Caves | Entered a destroyed Warlord outpost 33396 | -4/Upper Caves | Learned Research garrison access intel 33445 | -4/Upper Caves | Attracted the attention of an 0b10 outpost 33506 | -4/Upper Caves | Destroyed 10 combat bots 33521 | -4/Upper Caves | Learned 8 Research zone layouts 33587 | -4/Upper Caves | Discovered new exit (range 3) 33681 | -4/Upper Caves | Entered another Upper Caves area 33681 | -4/Upper Caves | Accompanied by 2 allies 33731 | -4/Upper Caves | Discovered exit to Research (range 15) 33980 | -4/Upper Caves | Discovered new exit (range 15) 34012 | -4/Upper Caves | Entered Zhirov 34012 | -4/Zhirov | Discovered new exit (range 3) 34019 | -4/Zhirov | Met Zhirov 34026 | -4/Zhirov | Learned location of Command (-1) 34030 | -4/Zhirov | Zhirov requested help retrieving the SGEMP Prototype 34053 | -4/Zhirov | Found Alien Artifact 34053 | -4/Zhirov | Identified Integrated Reactor 34053 | -4/Zhirov | Installed Integrated Reactor, increased core energy generation (+10) 34061 | -4/Zhirov | Found Alien Artifact 34082 | -4/Zhirov | Entered Proximity Caves 34187 | -3/Proximity Caves | Attracted the attention of an 0b10 base 34187 | -3/Proximity Caves | Learned location of 1 exit from Factory 34187 | -3/Proximity Caves | Learned Research terminal intel 34246 | -3/Proximity Caves | Destroyed 9 combat bots 34362 | -3/Proximity Caves | Entered Research 34362 | -3/Research | Evolved 2 slots: Utility x2 34363 | -3/Research | Identified exit to Armory 34363 | -3/Research | Identified exit to Research 34363 | -3/Research | Identified exit to Testing 34364 | -3/Research | Loaded intel: 22 terminal locations 34365 | -3/Research | Loaded intel: 4 garrison access locations 34488 | -3/Research | Found Prototype Processor 34488 | -3/Research | Identified Spectral Analyzer 34562 | -3/Research | Revision forces began assault on 0b10 34699 | -3/Research | Met up with Revision 17++ 35062 | -3/Research | Research terminal network offline 35198 | -3/Research | Identified Transdimensional Reconstructor 35211 | -3/Research | Discovered exit to Testing (range 10) 35390 | -3/Research | Discovered exit to Research (range 7) 35467 | -3/Research | Spotted Striker 35468 | -3/Research | Spotted Striker 35470 | -3/Research | Destroyed Striker 35474 | -3/Research | Destroyed Striker 35529 | -3/Research | Entered Armory 35716 | -3/Armory | Spotted B-86 Titan 35745 | -3/Armory | Destroyed B-86 Titan 35805 | -3/Armory | Lost 3 allies 35830 | -3/Armory | Discovered exit to Research (range 3) 35844 | -3/Armory | Build established: Scavenger-Construct 36080 | -3/Armory | Warped through subspace to slip node 36080 | -3/Armory | Discovered new exit (range 1) 36200 | -3/Armory | Spotted Armor Guard 36201 | -3/Armory | Spotted Armor Guard 36210 | -3/Armory | Destroyed Armor Guard 36226 | -3/Armory | Destroyed Armor Guard 36229 | -3/Armory | Found Prototype Device 36229 | -3/Armory | Identified Exp. Weapon Cycler 36237 | -3/Armory | Found Superdense Plating 36251 | -3/Armory | Breached Obliterator storage 36258 | -3/Armory | Found PL-3XN's Ring of Power 36262 | -3/Armory | Spotted Armor Guard 36262 | -3/Armory | Spotted Armor Guard 36264 | -3/Armory | Found Disassembled Obliterator 36279 | -3/Armory | First assault squad dispatched 36291 | -3/Armory | Entered Lab 36291 | -3/Lab | Discovered exit to Research (range 9) 36296 | -3/Lab | Hidden lab's door opened automatically 36296 | -3/Lab | Sensor layout match revealed 36297 | -3/Lab | Gained access to the hidden lab's interior 36317 | -3/Lab | Found Alien Artifact 36317 | -3/Lab | Identified Core Expander 36317 | -3/Lab | Installed Core Expander, added new Weapon slot 36326 | -3/Lab | Found Prototype Energy Cannon 36331 | -3/Lab | Identified Warp Cannon 36341 | -3/Lab | Found Prototype Energy Cannon 36341 | -3/Lab | Identified Potential Cannon 36353 | -3/Lab | Found Alien Artifact 36353 | -3/Lab | Identified Integrated Mediator 36353 | -3/Lab | Installed Integrated Mediator, increased core attachment efficiency 36492 | -3/Lab | Unable to decrypt terminal 36680 | -3/Lab | Found Transdimensional Reconstructor 36696 | -3/Lab | Found Med. Regenerative Plating 36698 | -3/Lab | Found Prototype Hackware 36733 | -3/Lab | Identified Quantum Router 36742 | -3/Lab | Detected by scanners 36748 | -3/Lab | Confronted by A5 36753 | -3/Lab | Destroyed A5 36767 | -3/Lab | Found Prototype Hackware 36782 | -3/Lab | Identified Exp. System Shield 36794 | -3/Lab | Entered Research 36794 | -2/Research | Warlord forces began assault on 0b10 36794 | -2/Research | Evolved 2 slots: Utility x2 36795 | -2/Research | Loaded intel: 22 terminal locations 36836 | -2/Research | Spotted B-90 Cyclops 36837 | -2/Research | Destroyed B-90 Cyclops 36904 | -2/Research | Research machine network offline 36942 | -2/Research | Met up with Warlord 36956 | -2/Research | Spotted Tracker 36957 | -2/Research | Spotted Tracker 36959 | -2/Research | Destroyed Tracker 36960 | -2/Research | Destroyed Tracker 37020 | -2/Research | Spotted Combat Programmer 37021 | -2/Research | Build established: Construct 37025 | -2/Research | Destroyed Combat Programmer 37237 | -2/Research | Spotted B-90 Cyclops 37238 | -2/Research | Destroyed B-90 Cyclops 37258 | -2/Research | Spotted Striker 37261 | -2/Research | Destroyed Striker 37269 | -2/Research | Discovered new exit (range 7) 37290 | -2/Research | Spotted Striker 37333 | -2/Research | Found Prototype Processor 37333 | -2/Research | Identified Exp. Signal Interpreter 37337 | -2/Research | Found Exp. Signal Interpreter 37341 | -2/Research | Destroyed Striker 37344 | -2/Research | Found Prototype Launcher 37344 | -2/Research | Identified Adv. Micro-nuke Launcher 37352 | -2/Research | Discovered new exit (range 5) 37354 | -2/Research | Identified exit to Access 37362 | -2/Research | Destroyed 25 combat bots 37400 | -2/Research | Spotted Striker 37403 | -2/Research | Destroyed Striker 37414 | -2/Research | Spotted B-90 Cyclops 37417 | -2/Research | Destroyed B-90 Cyclops 37425 | -2/Research | Found Quantum Capacitor 37428 | -2/Research | Spotted Tracker 37428 | -2/Research | Spotted Tracker 37429 | -2/Research | Spotted Tracker 37430 | -2/Research | Destroyed Tracker 37432 | -2/Research | Destroyed Tracker 37433 | -2/Research | Destroyed Tracker 37439 | -2/Research | Spotted Combat Programmer 37444 | -2/Research | Destroyed Combat Programmer 37451 | -2/Research | Spotted Combat Programmer 37456 | -2/Research | Destroyed Combat Programmer 37463 | -2/Research | Spotted Combat Programmer 37474 | -2/Research | Destroyed Combat Programmer 37486 | -2/Research | Found Corrupted Exp. Phase Shifter 37489 | -2/Research | Found Prototype Special Weapon 37489 | -2/Research | Identified Exp. Remote Datajack 37495 | -2/Research | Destroyed 12 combat bots 37495 | -2/Research | Found EMDS 37516 | -2/Research | High security lockdown imminent 37592 | -2/Research | Spotted Striker 37596 | -2/Research | High security lockdown engaged 37596 | -2/Research | Destroyed Striker 37624 | -2/Research | Borebot progress halted 37633 | -2/Research | Discovered exit to Access (range 4) 37653 | -2/Research | Spotted Striker 37654 | -2/Research | Destroyed Striker 37688 | -2/Research | Destroyed 30 combat bots 37699 | -2/Research | Borebot progress halted 37729 | -2/Research | Found Prototype Reactor 37740 | -2/Research | Identified Singularity Reactor 37886 | -2/Research | Spotted Executioner 37887 | -2/Research | Spotted Striker 37888 | -2/Research | Destroyed Executioner 37888 | -2/Research | Destroyed Executioner 37889 | -2/Research | Destroyed Striker 37899 | -2/Research | Spotted Tracker 37901 | -2/Research | Spotted Tracker 37902 | -2/Research | Spotted Tracker 37902 | -2/Research | Spotted Tracker 37903 | -2/Research | Discovered new exit (range 4) 37905 | -2/Research | Entered Quarantine 37909 | -2/Quarantine | Found Alien Artifact 37909 | -2/Quarantine | Identified Phase Redirector 37919 | -2/Quarantine | Destroyed 16 combat bots 37975 | -2/Quarantine | Lost 3 allies 37986 | -2/Quarantine | Discovered exit to Access (range 11) 38000 | -2/Quarantine | Found Alien Artifact 38002 | -2/Quarantine | Identified Subatomic Replicator 38002 | -2/Quarantine | Used Subatomic Replicator to replicate PL-3XN's Ring of Power 38007 | -2/Quarantine | Assembled PL-3XN's Obliterator 38027 | -2/Quarantine | Found Alien Energy Cannon 38027 | -2/Quarantine | Identified Core Cannon 38074 | -2/Quarantine | Found Alien Artifact 38074 | -2/Quarantine | Identified Phase Armor 38081 | -2/Quarantine | Found Alien Slashing Weapon 38081 | -2/Quarantine | Identified Sigix Broadsword 38095 | -2/Quarantine | Found Alien Impact Weapon 38097 | -2/Quarantine | Identified Core Stripper 38155 | -2/Quarantine | Found Prototype Device 38155 | -2/Quarantine | Identified Exp. Thermal Defense Suite 38184 | -2/Quarantine | Spotted Alpha 7 38185 | -2/Quarantine | Destroyed Alpha 7 38195 | -2/Quarantine | Found Alien Launcher 38195 | -2/Quarantine | Identified Sigix Terminator 38243 | -2/Quarantine | Intercept squad dispatched 38249 | -2/Quarantine | Spotted Tracker 38249 | -2/Quarantine | Spotted Tracker 38250 | -2/Quarantine | Destroyed Tracker 38251 | -2/Quarantine | Destroyed Tracker 38260 | -2/Quarantine | Spotted Combat Programmer 38260 | -2/Quarantine | Spotted Combat Programmer 38262 | -2/Quarantine | Destroyed Combat Programmer 38262 | -2/Quarantine | Destroyed Combat Programmer 38405 | -2/Quarantine | First assault squad dispatched 38415 | -2/Quarantine | Spotted Fortress 38424 | -2/Quarantine | Destroyed Fortress 38447 | -2/Quarantine | Found Prototype Device 38447 | -2/Quarantine | Identified Exp. Force Field 38454 | -2/Quarantine | Found Prototype Device 38454 | -2/Quarantine | Identified Exp. EM Shield 38457 | -2/Quarantine | Found Prototype Device 38457 | -2/Quarantine | Identified Thermal Barrier 38482 | -2/Quarantine | Found Prototype Protection 38482 | -2/Quarantine | Identified Centrium Heavy Armor Plating 38514 | -2/Quarantine | Discovered new exit (range 7) 38514 | -2/Quarantine | Discovered new exit (range 6) 38537 | -2/Quarantine | Entered Protoforge 38623 | -2/Protoforge | Discovered exit to Access (range 14) 38703 | -2/Protoforge | Spotted B-90 Cyclops 38711 | -2/Protoforge | Destroyed B-90 Cyclops 38765 | -2/Protoforge | Repaired Quantum Capacitor 38787 | -2/Protoforge | First assault squad dispatched 38796 | -2/Protoforge | Spotted Hotshot 38796 | -2/Protoforge | Spotted Hotshot 38796 | -2/Protoforge | Spotted Hotshot 38796 | -2/Protoforge | Spotted Hotshot 38796 | -2/Protoforge | Spotted Hotshot 38820 | -2/Protoforge | Found Prototype Device 38823 | -2/Protoforge | Identified Cep. Weapon Articulator 38861 | -2/Protoforge | Destroyed 13 combat bots 38877 | -2/Protoforge | Found Prototype Device 38879 | -2/Protoforge | Identified Exp. Trap Extractor 38914 | -2/Protoforge | Found Prototype Ballistic Gun 38914 | -2/Protoforge | Identified Cep. XC Strikerail 38920 | -2/Protoforge | Found Prototype Protection 38924 | -2/Protoforge | Identified Cep. Core Shell 38932 | -2/Protoforge | Spotted V002-f 38946 | -2/Protoforge | Build established: Infiltrator-Construct 39002 | -2/Protoforge | Found Prototype Device 39004 | -2/Protoforge | Spotted Immortal 39004 | -2/Protoforge | Spotted Immortal 39024 | -2/Protoforge | Destroyed Immortal 39027 | -2/Protoforge | Destroyed Immortal 39035 | -2/Protoforge | Identified Crosscalibrator 39038 | -2/Protoforge | Found Prototype Device 39049 | -2/Protoforge | Identified Cep. Phase Shift Module 39054 | -2/Protoforge | Found Cep. Phase Shift Module 39057 | -2/Protoforge | Found Prototype Device 39060 | -2/Protoforge | Identified Exp. EM Disruption Field 39068 | -2/Protoforge | Found Exp. Force Field 39102 | -2/Protoforge | Found Prototype Launcher 39111 | -2/Protoforge | Identified Cep. Tiamat Rocket Array 39116 | -2/Protoforge | Spotted V239-g 39116 | -2/Protoforge | Spotted V718-q 39116 | -2/Protoforge | Spotted V979-t 39124 | -2/Protoforge | Spotted V573-s 39167 | -2/Protoforge | Found Prototype Ballistic Cannon 39170 | -2/Protoforge | Identified Cep. Helical Railcannon 39173 | -2/Protoforge | Found Prototype Ballistic Cannon 39179 | -2/Protoforge | Identified Cep. Heavy Railcannon 39182 | -2/Protoforge | Found Prototype Slashing Weapon 39184 | -2/Protoforge | Identified Cep. Deflector Sword 39211 | -2/Protoforge | Found Cep. Plasma Driver 39269 | -2/Protoforge | Found Prototype Ballistic Cannon 39276 | -2/Protoforge | Identified Cep. Miniperforator 39347 | -2/Protoforge | Found Faulty Cep. Plasma Driver 39471 | -2/Protoforge | Superfortress began startup sequence 39482 | -2/Protoforge | System corruption reached 10% 39506 | -2/Protoforge | Destroyed V002-f 39527 | -2/Protoforge | Destroyed 22 combat bots 39563 | -2/Protoforge | High security lockdown imminent 39563 | -2/Protoforge | Destroyed Superfortress 39567 | -2/Protoforge | Destroyed Executioner 39581 | -2/Protoforge | Found Prototype Energy Cannon 39581 | -2/Protoforge | Identified Cld. Nova Cannon 39586 | -2/Protoforge | Intercept squad dispatched 39588 | -2/Protoforge | Destroyed 13 combat bots 39601 | -2/Protoforge | Spotted Tracker 39602 | -2/Protoforge | Destroyed Tracker 39602 | -2/Protoforge | Scanned by Researcher 39603 | -2/Protoforge | Spotted Tracker 39604 | -2/Protoforge | Destroyed Tracker 39634 | -2/Protoforge | Spotted Combat Programmer 39639 | -2/Protoforge | Destroyed Combat Programmer 39643 | -2/Protoforge | High security lockdown engaged 39653 | -2/Protoforge | Found Cep. Matter Streamer 39659 | -2/Protoforge | Found Prototype Device 39660 | -2/Protoforge | Destroyed 13 combat bots 39660 | -2/Protoforge | Identified Exp. EM Disruption Field 39663 | -2/Protoforge | Found Prototype Device 39665 | -2/Protoforge | Identified Cep. Antimissile System 39669 | -2/Protoforge | Found Cep. Miniperforator 39670 | -2/Protoforge | Found Cep. Plasma Driver 39672 | -2/Protoforge | Found Cld. Nova Cannon 39676 | -2/Protoforge | Found Prototype Power Core 39679 | -2/Protoforge | Found Exp. Force Field 39705 | -2/Protoforge | Identified Cep. Zero-point Core 39741 | -2/Protoforge | Spotted V610-w 39742 | -2/Protoforge | Spotted V500-u 39743 | -2/Protoforge | Spotted V752-y 39757 | -2/Protoforge | Build established: Construct 39898 | -2/Protoforge | Spotted Investigator 39900 | -2/Protoforge | Destroyed Investigator 39951 | -2/Protoforge | Destroyed 15 combat bots 40054 | -2/Protoforge | Spotted Investigator 40055 | -2/Protoforge | Destroyed Investigator 40056 | -2/Protoforge | Spotted Striker 40057 | -2/Protoforge | Destroyed Striker 40079 | -2/Protoforge | Destroyed 15 combat bots 40132 | -2/Protoforge | Spotted Decapitator 40132 | -2/Protoforge | Spotted Decapitator 40132 | -2/Protoforge | Spotted Decapitator 40145 | -2/Protoforge | Destroyed 8 combat bots 40170 | -2/Protoforge | Intercept squad dispatched 40202 | -2/Protoforge | Spotted Tracker 40203 | -2/Protoforge | Spotted Tracker 40203 | -2/Protoforge | Destroyed Tracker 40203 | -2/Protoforge | Spotted Tracker 40204 | -2/Protoforge | Destroyed Tracker 40205 | -2/Protoforge | Destroyed Tracker 40268 | -2/Protoforge | Spotted Combat Programmer 40271 | -2/Protoforge | Spotted Combat Programmer 40274 | -2/Protoforge | Destroyed Combat Programmer 40274 | -2/Protoforge | Spotted Combat Programmer 40276 | -2/Protoforge | Destroyed Combat Programmer 40281 | -2/Protoforge | Destroyed Combat Programmer 40310 | -2/Protoforge | Destroyed 13 combat bots 40312 | -2/Protoforge | Spotted AP7-3 40312 | -2/Protoforge | Spotted AP7-3 40313 | -2/Protoforge | Destroyed AP7-3 40320 | -2/Protoforge | Destroyed AP7-3 40356 | -2/Protoforge | Destroyed Executioner 40357 | -2/Protoforge | Destroyed Executioner 40380 | -2/Protoforge | Found Cep. Thermoelectric Network 40382 | -2/Protoforge | Found Faulty Cep. Thermoelectric Network 40385 | -2/Protoforge | Found Cep. Cloak Mesh 40386 | -2/Protoforge | Destroyed 17 combat bots 40386 | -2/Protoforge | Found Faulty Cep. Cloak Mesh 40388 | -2/Protoforge | Found Cep. Dimensional Manipulator 40405 | -2/Protoforge | Spotted Executioner 40406 | -2/Protoforge | Destroyed Executioner 40452 | -2/Protoforge | Spotted Investigator 40453 | -2/Protoforge | Destroyed Investigator 40477 | -2/Protoforge | Spotted Immortal 40477 | -2/Protoforge | Spotted Immortal 40480 | -2/Protoforge | Destroyed Immortal 40484 | -2/Protoforge | Destroyed Immortal 40486 | -2/Protoforge | Spotted V720-h 40488 | -2/Protoforge | Spotted V728-i 40491 | -2/Protoforge | Destroyed V728-i 40492 | -2/Protoforge | Found Prototype Device 40493 | -2/Protoforge | Identified Mni. Quantum Capacitor 40497 | -2/Protoforge | Found Exp. Kinecellerator 40499 | -2/Protoforge | Found Prototype Device 40499 | -2/Protoforge | Identified Cep. Countertargeting System 40502 | -2/Protoforge | Found Prototype Device 40502 | -2/Protoforge | Identified Cep. Hypertargeting System 40505 | -2/Protoforge | Found Cep. Networked Targeting System 40511 | -2/Protoforge | Found Exp. Kinecellerator 40512 | -2/Protoforge | Destroyed 13 combat bots 40519 | -2/Protoforge | Spotted V958-h 40523 | -2/Protoforge | Destroyed V720-h 40525 | -2/Protoforge | Destroyed V958-h 40548 | -2/Protoforge | Spotted Striker 40549 | -2/Protoforge | Spotted Striker 40550 | -2/Protoforge | Spotted Striker 40552 | -2/Protoforge | Destroyed Striker 40554 | -2/Protoforge | Destroyed Striker 40555 | -2/Protoforge | Destroyed Striker 40576 | -2/Protoforge | Intercept squad dispatched 40580 | -2/Protoforge | Destroyed 24 combat bots 40595 | -2/Protoforge | Spotted Tracker 40595 | -2/Protoforge | Spotted Tracker 40596 | -2/Protoforge | Destroyed Tracker 40596 | -2/Protoforge | Destroyed Tracker 40597 | -2/Protoforge | Spotted Tracker 40597 | -2/Protoforge | Destroyed Tracker 40639 | -2/Protoforge | Spotted Combat Programmer 40639 | -2/Protoforge | Destroyed Combat Programmer 40640 | -2/Protoforge | Spotted Combat Programmer 40641 | -2/Protoforge | Spotted Combat Programmer 40645 | -2/Protoforge | Destroyed Combat Programmer 40649 | -2/Protoforge | Destroyed Combat Programmer 40656 | -2/Protoforge | Destroyed Executioner 40662 | -2/Protoforge | Destroyed Decapitator 40662 | -2/Protoforge | Destroyed Decapitator 40664 | -2/Protoforge | Spotted Striker 40664 | -2/Protoforge | Spotted Executioner 40665 | -2/Protoforge | Destroyed Striker 40666 | -2/Protoforge | Destroyed Executioner 40668 | -2/Protoforge | Destroyed Decapitator 40681 | -2/Protoforge | Found Cep. Antigrav Storage Unit 40689 | -2/Protoforge | Destroyed 15 combat bots 40735 | -2/Protoforge | Destroyed V752-y 40735 | -2/Protoforge | Destroyed V500-u 40738 | -2/Protoforge | Destroyed V610-w 40742 | -2/Protoforge | Found Prototype Device 40742 | -2/Protoforge | Identified Exp. Shield Generator 40752 | -2/Protoforge | Found Prototype Device 40752 | -2/Protoforge | Identified Exp. Actuator Array 40761 | -2/Protoforge | Crushed by falling debris 40785 | -2/Protoforge | Destroyed Executioner 40789 | -2/Protoforge | Spotted Executioner 40789 | -2/Protoforge | Spotted Striker 40793 | -2/Protoforge | Destroyed Striker 40796 | -2/Protoforge | Destroyed Executioner 40796 | -2/Protoforge | Spotted Executioner 40799 | -2/Protoforge | Destroyed Striker 40804 | -2/Protoforge | Destroyed Executioner 40830 | -2/Protoforge | Destroyed 30 combat bots 40883 | -2/Protoforge | Spotted Decapitator 40883 | -2/Protoforge | Spotted Decapitator 40883 | -2/Protoforge | Spotted Decapitator 40883 | -2/Protoforge | Destroyed Decapitator 40884 | -2/Protoforge | Destroyed Decapitator 40886 | -2/Protoforge | Destroyed Decapitator 40891 | -2/Protoforge | Spotted V050-w 40892 | -2/Protoforge | Spotted V726-f 40892 | -2/Protoforge | Destroyed V726-f 40902 | -2/Protoforge | Destroyed V050-w 40905 | -2/Protoforge | Found Prototype Device 40905 | -2/Protoforge | Identified Exp. Focal Shield 40961 | -2/Protoforge | Destroyed 8 combat bots 40971 | -2/Protoforge | Destroyed V573-s 40975 | -2/Protoforge | Destroyed V979-t 40975 | -2/Protoforge | Destroyed V239-g 40976 | -2/Protoforge | Destroyed V718-q 40994 | -2/Protoforge | Found Prototype Energy Gun 40994 | -2/Protoforge | Identified Enh. Gamma Rifle 41058 | -2/Protoforge | Found Faulty Exp. Active Sensor Suite 41062 | -2/Protoforge | Found Faulty Exp. Active Sensor Suite 41103 | -2/Protoforge | Intercept squad dispatched 41130 | -2/Protoforge | Spotted Tracker 41130 | -2/Protoforge | Destroyed Tracker 41130 | -2/Protoforge | Spotted Tracker 41131 | -2/Protoforge | Spotted Tracker 41131 | -2/Protoforge | Destroyed Tracker 41131 | -2/Protoforge | Destroyed Tracker 41194 | -2/Protoforge | Spotted Combat Programmer 41198 | -2/Protoforge | Destroyed Combat Programmer 41226 | -2/Protoforge | Destroyed 7 combat bots 41274 | -2/Protoforge | Destroyed Striker 41288 | -2/Protoforge | Destroyed Investigator 41312 | -2/Protoforge | Destroyed Executioner 41318 | -2/Protoforge | Spotted Executioner 41318 | -2/Protoforge | Spotted Striker 41321 | -2/Protoforge | Destroyed Striker 41322 | -2/Protoforge | Destroyed Executioner 41347 | -2/Protoforge | Destroyed Executioner 41366 | -2/Protoforge | Spotted Striker 41380 | -2/Protoforge | Spotted Striker 41383 | -2/Protoforge | Destroyed Striker 41385 | -2/Protoforge | Destroyed Striker 41421 | -2/Protoforge | Destroyed 48 combat bots 41482 | -2/Protoforge | Additional patrols dispatched to research labs 41543 | -2/Protoforge | Spotted Hotshot 41543 | -2/Protoforge | Spotted Hotshot 41543 | -2/Protoforge | Destroyed Hotshot 41546 | -2/Protoforge | Spotted Overlord 41546 | -2/Protoforge | Destroyed Overlord 41547 | -2/Protoforge | Destroyed Hotshot 41547 | -2/Protoforge | Destroyed Hotshot 41548 | -2/Protoforge | Destroyed Hotshot 41549 | -2/Protoforge | Destroyed Hotshot 41557 | -2/Protoforge | Entered Access 41557 | -1/Access | Evolved 2 slots: Utility x2 41559 | -1/Access | Spotted Striker 41560 | -1/Access | Spotted Striker 41565 | -1/Access | Destroyed Striker 41567 | -1/Access | Destroyed Striker 41588 | -1/Access | Destroyed 20 combat bots 41611 | -1/Access | High security lockdown imminent 41623 | -1/Access | Destroyed B-99 Colossus 41651 | -1/Access | Identified exit to Command 41691 | -1/Access | High security lockdown engaged 41739 | -1/Access | Spotted B-99 Colossus 41739 | -1/Access | Destroyed B-99 Colossus 41820 | -1/Access | Destroyed 50 combat bots 41931 | -1/Access | Build established: Assassin 42078 | -1/Access | Destroyed 8 combat bots 42287 | -1/Access | Destroyed 10 combat bots 42502 | -1/Access | Spotted Striker 42507 | -1/Access | Destroyed Striker 42508 | -1/Access | Destroyed Striker 42509 | -1/Access | Destroyed Striker 42510 | -1/Access | Spotted Executioner 42510 | -1/Access | Spotted Striker 42510 | -1/Access | Spotted Striker 42510 | -1/Access | Spotted Striker 42512 | -1/Access | Destroyed Striker 42513 | -1/Access | Spotted Striker 42515 | -1/Access | Destroyed Striker 42515 | -1/Access | Destroyed Striker 42515 | -1/Access | Destroyed Executioner 42515 | -1/Access | Spotted Executioner 42518 | -1/Access | Destroyed Executioner 42518 | -1/Access | Destroyed Striker 42539 | -1/Access | Destroyed 28 combat bots 42653 | -1/Access | Spotted Striker 42654 | -1/Access | Spotted Executioner 42654 | -1/Access | Destroyed Executioner 42655 | -1/Access | Destroyed Striker 42680 | -1/Access | Destroyed 7 combat bots 42726 | -1/Access | Destroyed Investigator 42730 | -1/Access | Spotted Investigator 42732 | -1/Access | Destroyed Investigator 42736 | -1/Access | Spotted Striker 42738 | -1/Access | Spotted Striker 42738 | -1/Access | Spotted Executioner 42740 | -1/Access | Destroyed Striker 42740 | -1/Access | Destroyed Striker 42745 | -1/Access | Destroyed Executioner 42747 | -1/Access | Destroyed Striker 42747 | -1/Access | Destroyed Executioner 42748 | -1/Access | Destroyed Executioner 42769 | -1/Access | Destroyed 21 combat bots 42784 | -1/Access | Spotted Striker 42784 | -1/Access | Destroyed Striker 42786 | -1/Access | Spotted Striker 42790 | -1/Access | Destroyed Striker 42816 | -1/Access | Destroyed 10 combat bots 42825 | -1/Access | Spotted Striker 42831 | -1/Access | Destroyed Striker 42882 | -1/Access | Destroyed Striker 42907 | -1/Access | Spotted Executioner 42909 | -1/Access | Spotted Executioner 42914 | -1/Access | Spotted Striker 42915 | -1/Access | Destroyed Executioner 42915 | -1/Access | Spotted Striker 42916 | -1/Access | Destroyed Striker 42918 | -1/Access | Destroyed Striker 42954 | -1/Access | Spotted Executioner 42954 | -1/Access | Destroyed Striker 42954 | -1/Access | Destroyed Executioner 42960 | -1/Access | Destroyed Executioner 42960 | -1/Access | Destroyed Executioner 42982 | -1/Access | Destroyed 7 combat bots 43058 | -1/Access | Destroyed Executioner 43059 | -1/Access | Destroyed Executioner 43113 | -1/Access | Destroyed Executioner 43114 | -1/Access | Destroyed Striker 43115 | -1/Access | Destroyed Executioner 43149 | -1/Access | Destroyed 9 combat bots 43150 | -1/Access | Spotted Striker 43150 | -1/Access | Spotted Executioner 43153 | -1/Access | Destroyed Executioner 43157 | -1/Access | Spotted Striker 43157 | -1/Access | Destroyed Striker 43157 | -1/Access | Spotted Executioner 43158 | -1/Access | Destroyed Executioner 43161 | -1/Access | Destroyed Striker 43182 | -1/Access | Destroyed 9 combat bots 43221 | -1/Access | Spotted Executioner 43221 | -1/Access | Destroyed Executioner 43254 | -1/Access | Destroyed 7 combat bots 43281 | -1/Access | Spotted Striker 43281 | -1/Access | Destroyed Striker 43282 | -1/Access | Destroyed Striker 43318 | -1/Access | Destroyed 7 combat bots 43548 | -1/Access | Destroyed Striker 43551 | -1/Access | Destroyed Executioner 43551 | -1/Access | Destroyed Striker 43583 | -1/Access | Destroyed 11 combat bots 43709 | -1/Access | Spotted Striker 43709 | -1/Access | Destroyed Striker 43717 | -1/Access | Spotted Executioner 43717 | -1/Access | Spotted Executioner 43718 | -1/Access | Destroyed Executioner 43720 | -1/Access | Destroyed Executioner 43720 | -1/Access | Spotted Striker 43724 | -1/Access | Destroyed Striker 43724 | -1/Access | Destroyed Striker 43748 | -1/Access | Destroyed 19 combat bots 43751 | -1/Access | Sterilization system engaged 43838 | -1/Access | Destroyed Striker 43913 | -1/Access | Spotted Investigator 43921 | -1/Access | Destroyed 10 combat bots 43951 | -1/Access | Destroyed Executioner 43973 | -1/Access | Destroyed 7 combat bots 44015 | -1/Access | Destroyed Executioner 44051 | -1/Access | Ambient heat levels rising (+10) 44153 | -1/Access | Destroyed Executioner 44201 | -1/Access | Ambient heat levels rising (+10) 44242 | -1/Access | Spotted Striker 44242 | -1/Access | Spotted Striker 44245 | -1/Access | Destroyed Striker 44246 | -1/Access | Destroyed Striker 44267 | -1/Access | Spotted Striker 44268 | -1/Access | Destroyed Striker 44268 | -1/Access | Destroyed Striker 44271 | -1/Access | Spotted Striker 44271 | -1/Access | Destroyed Striker 44286 | -1/Access | Spotted B-99 Colossus 44290 | -1/Access | Destroyed B-99 Colossus 44299 | -1/Access | Spotted Striker 44299 | -1/Access | Spotted Striker 44305 | -1/Access | Destroyed Striker 44308 | -1/Access | Destroyed Striker 44338 | -1/Access | Spotted B-99 Colossus 44340 | -1/Access | Destroyed B-99 Colossus 44351 | -1/Access | Ambient heat levels rising (+10) 44361 | -1/Access | Destroyed 26 combat bots 44381 | -1/Access | Spotted Striker 44383 | -1/Access | Destroyed Striker 44469 | -1/Access | Destroyed 11 combat bots 44491 | -1/Access | Spotted Executioner 44492 | -1/Access | Destroyed Executioner 44493 | -1/Access | Spotted Executioner 44498 | -1/Access | Destroyed Executioner 44501 | -1/Access | Ambient heat levels rising (+10) 44598 | -1/Access | Destroyed Executioner 44631 | -1/Access | Destroyed 7 combat bots 44651 | -1/Access | Ambient heat levels rising (+10) 44683 | -1/Access | Spotted B-99 Colossus 44683 | -1/Access | Spotted B-99 Colossus 44699 | -1/Access | Destroyed B-99 Colossus 44712 | -1/Access | Destroyed B-99 Colossus 44801 | -1/Access | Ambient heat levels rising (+10) 44862 | -1/Access | Spotted B-99 Colossus 44863 | -1/Access | Destroyed B-99 Colossus 44951 | -1/Access | Ambient heat levels rising (+10) 45030 | -1/Access | Found Prototype Launcher 45031 | -1/Access | Identified Containment Facilitator 45039 | -1/Access | Entered Command 45086 | -1/Command | Spotted B-99 Colossus 45166 | -1/Command | High security lockdown imminent 45198 | -1/Command | Destroyed 7 combat bots 45246 | -1/Command | High security lockdown engaged 45277 | -1/Command | Fired Sigix Terminator 45277 | -1/Command | MAIN.C activated Command garrisons 45285 | -1/Command | Spotted Executioner 45298 | -1/Command | Destroyed Executioner 45373 | -1/Command | Destroyed 230 combat bots 45836 | -1/Command | Spotted Striker 45839 | -1/Command | Spotted Striker 45841 | -1/Command | Destroyed Striker 45843 | -1/Command | Destroyed Striker 46506 | -1/Command | Destroyed Striker 46575 | -1/Command | Phase Generator disabled 46792 | -1/Command | Found Prototype Device 46792 | -1/Command | Identified Active Sensor Suite 46797 | -1/Command | Destroyed 93 combat bots 46827 | -1/Command | Destroyed B-99 Colossus 47069 | -1/Command | Destroyed 36 combat bots 47127 | -1/Command | Destroyed 15 combat bots 47225 | -1/Command | Destroyed 9 combat bots 47431 | -1/Command | Spotted B-99 Colossus 47452 | -1/Command | Destroyed B-99 Colossus 47591 | -1/Command | Spotted Executioner 47595 | -1/Command | Spotted Striker 47596 | -1/Command | Destroyed Striker 47597 | -1/Command | Destroyed Executioner 47605 | -1/Command | Spotted Striker 47609 | -1/Command | Destroyed Striker 47610 | -1/Command | Spotted Executioner 47611 | -1/Command | Destroyed Executioner 47632 | -1/Command | Destroyed 21 combat bots 47752 | -1/Command | Spotted Executioner 47754 | -1/Command | Destroyed Executioner 47755 | -1/Command | Spotted Executioner 47755 | -1/Command | Spotted Alpha 7 47760 | -1/Command | Destroyed Alpha 7 47762 | -1/Command | Destroyed Executioner 47767 | -1/Command | Spotted Alpha 7 47770 | -1/Command | Spotted B-99 Colossus 47771 | -1/Command | Spotted M Guard 47780 | -1/Command | Destroyed Alpha 7 47784 | -1/Command | Spotted M Guard 47796 | -1/Command | Destroyed B-99 Colossus 47809 | -1/Command | Destroyed M Guard 47817 | -1/Command | Destroyed M Guard 47838 | -1/Command | Destroyed 7 combat bots 47840 | -1/Command | Destroyed B-99 Colossus 47855 | -1/Command | Found Prototype Device 47855 | -1/Command | Identified AEGIS Remote Shield 47860 | -1/Command | Spotted Combat Programmer 47860 | -1/Command | Spotted Combat Programmer 47874 | -1/Command | Destroyed Combat Programmer 47878 | -1/Command | Destroyed Combat Programmer 47878 | -1/Command | All MAIN.C guards destroyed 47936 | -1/Command | Met MAIN.C 47939 | -1/Command | Destroyed MAIN.C Shell 47939 | -1/Command | 0b10 Conduit disabled 47943 | -1/Command | Destroyed MAIN.C 47949 | -1/Command | Discovered new exit (range 32) 47949 | -1/Command | Discovered new exit (range 94) 47949 | -1/Command | Extracted map data and part IDs from MAIN.C's data core 48098 | -1/Command | Found Exp. Powered Armor 48166 | -1/Command | Found Cld. Nova Cannon 48202 | -1/Command | Build established: Gunner 48688 | -1/Command | Found Exp. System Purifier 48929 | -1/Command | Found Exp. Armor Integrity Analyzer 48969 | -1/Command | Found Gui. Micro-nuke Launcher 49179 | -1/Command | Warped through subspace to slip node 49179 | -1/Command | Discovered new exit (range 4) 49182 | -1/Command | Entered Access_0 49183 | -1/Access_0 | Architect warped through subspace 49189 | -1/Access_0 | Destroyed A8 49204 | -1/Access_0 | Found Prototype Device 49204 | -1/Access_0 | Identified Desublimator 49211 | -1/Access_0 | Subspace Access Node disabled 49228 | -1/Access_0 | Build established: Scavenger-Sprinter 49249 | -1/Access_0 | Architect warped through subspace 49258 | -1/Access_0 | Found Prototype Protection 49259 | -1/Access_0 | Identified Centrium Linked Plating 49275 | -1/Access_0 | Found Exp. Powered Armor 49277 | -1/Access_0 | Architect warped through subspace 49288 | -1/Access_0 | A6 warped into view 49293 | -1/Access_0 | Destroyed A6 49305 | -1/Access_0 | Architect warped through subspace 49316 | -1/Access_0 | Subspace Access Node disabled 49327 | -1/Access_0 | Architect warped through subspace 49351 | -1/Access_0 | Architect warped through subspace 49366 | -1/Access_0 | Architect warped through subspace 49387 | -1/Access_0 | Found Integrated Dissipator 49387 | -1/Access_0 | Installed Integrated Dissipator, increased core heat dissipation (+20) 49398 | -1/Access_0 | Architect warped through subspace 49419 | -1/Access_0 | Architect warped through subspace 49429 | -1/Access_0 | Found Centrium Linked Plating 49434 | -1/Access_0 | Architect warped through subspace 49441 | -1/Access_0 | Architect warped through subspace 49458 | -1/Access_0 | Architect warped through subspace 49482 | -1/Access_0 | Architect warped through subspace 49498 | -1/Access_0 | Architect warped through subspace 49508 | -1/Access_0 | Architect warped through subspace 49524 | -1/Access_0 | A4 warped into view 49525 | -1/Access_0 | Destroyed A4 49530 | -1/Access_0 | Architect warped through subspace 49547 | -1/Access_0 | Destroyed A2 49549 | -1/Access_0 | Extracted Singularity Gate Test 138-C access codes from A2's data core 49551 | -1/Access_0 | Found Prototype Device 49555 | -1/Access_0 | Architect warped through subspace 49555 | -1/Access_0 | Identified ST Field Compressor 49603 | -1/Access_0 | Architect warped through subspace 49604 | -1/Access_0 | Started Test 138-B, establishing a local singularity 49604 | -1/Access_0 | Started Test 138-B, establishing a local singularity 49628 | -1/Access_0 | Architect warped through subspace 49636 | -1/Access_0 | Subspace Access Node disabled 49645 | -1/Access_0 | Architect warped through subspace 49657 | -1/Access_0 | A3 warped into view 49662 | -1/Access_0 | Destroyed A3 49664 | -1/Access_0 | Found Prototype Ballistic Gun 49664 | -1/Access_0 | Identified A3's Sniper Rifle 49673 | -1/Access_0 | Found ST Field Compressor 49696 | -1/Access_0 | Architect warped through subspace 49703 | -1/Access_0 | Found Alien Energy Gun 49705 | -1/Access_0 | Identified Modified Sigix Sheargun 49712 | -1/Access_0 | Architect warped through subspace 49724 | -1/Access_0 | Architect warped through subspace 49724 | -1/Access_0 | Found Modified Sigix Sheargun 49762 | -1/Access_0 | Build established: Sprinter 49771 | -1/Access_0 | Singularity Gate disabled 49791 | -1/Access_0 | Architect warped through subspace 49818 | -1/Access_0 | Architect warped through subspace 49830 | -1/Access_0 | Architect warped through subspace 49838 | -1/Access_0 | Architect warped through subspace 49841 | -1/Access_0 | Architect warped through subspace 49844 | -1/Access_0 | Architect warped through subspace 49845 | -1/Access_0 | Architect warped through subspace 49845 | -1/Access_0 | Subspace Access Node disabled 49854 | -1/Access_0 | Destroyed Architect 49858 | -1/Access_0 | Extracted unknown sensor trigger ID from Architect's data core 49860 | -1/Access_0 | Found Modified Sigix Sheargun 49874 | -1/Access_0 | Found Prototype Hackware 49874 | -1/Access_0 | Identified Architect God Chip D 49876 | -1/Access_0 | Found Prototype Hackware 49876 | -1/Access_0 | Identified Architect God Chip A 49879 | -1/Access_0 | Found Hpw. Transdimensional Reconstructor 49881 | -1/Access_0 | Found Centrium Linked Plating 49913 | -1/Access_0 | Found Exp. Transmission Jammer 49915 | -1/Access_0 | Found Exp. Transmission Jammer 49977 | -1/Access_0 | Found Desublimator 50092 | -1/Access_0 | Found Sigix Corpse 50121 | -1/Access_0 | Warped through subspace to slip node 50121 | -1/Access_0 | Discovered new exit (range 8) 50125 | *** | Establishing 0b11! Last Messages --------------- 50001_ Dropped Exp. Power Amplifier. 50001_ Acquired Centrium Linked Plating. 50008_ Acquired 25 matter. 50009_ Acquired 5 matter. 50054_ Enhanced Grunt suffers critical hit (Destroy). 50054_ Destroyed Enh. Flexi-carbon Leg. 50062_ Enhanced Grunt suffers critical hit (Destroy). 50062_ Destroyed Enh. Flexi-carbon Leg. 50064_ Enhanced Grunt suffers critical hit (Destroy). 50065_ Enhanced Grunt destroyed. 50088_ Analysis Chamber breached. 50090_ Dropped Exp. Powered Armor. 50092_ Acquired Sigix Corpse. 50103_ Acquired 5 matter. 50118_ Dropped Exp. Transmission Jammer. 50118_ Acquired Mni. Quantum Capacitor. 50121_ Warped through subspace, drawn to slip node. 50121_ EXIT=FOUND 50124_ Acquired Exp. Transmission Jammer. [Achievement: Superachiever] Map ----- +----------------------------------------------------+ | | | | | | | | | | | | | | | | | | | | | | | | | | | | | | | | | ?????????????????????????????????????????????????? | | ?????????????????????????????????????????????????? | | ?????????????????????????????????????????????????? | | ?????????????????????????????????????????????????? | | ?????????????????????????????????????????????????? | | ?????????????????????????????????????????????????? | | ????????????????????????###??????????????????????? | | ???????????????????????## ##?????????????????????? | | ???????????????????????# #?????????????????????? | | ???????????????????????# @ #?????????????????????? | | ??????????????????????## #?????????????????????? | | ??????????????????????# #?????????????????????? | | ??????????????????????# ##?????????????????????? | | ??????????????????????## #?????????????????????? | | ??????????????????????# #?????????????????????? | | ??????????????????????# ##?????????????????????? | | ??????????????????????# < #?????????????????????? | | ??????????????????????# ##?????????????????????? | | ??????????????????????## #??????????????????????? | | ???????????????????????####??????????????????????? | | ?????????????????????????????????????????????????? | | ?????????????????????????????????????????????????? | | ?????????????????????????????????????????????????? | | ?????????????????????????????????????????????????? | | ?????????????????????????????????????????????????? | | ?????????????????????????????????????????????????? | | ?????????????????????????????????????????????????? | | ?????????????????????????????????????????????????? | | ?????????????????????????????????????????????????? | | ?????????????????????????????????????????????????? | | ?????????????????????????????????????????????????? | | ?????????????????????????????????????????????????? | | ?????????????????????????????????????????????????? | | ?????????????????????????????????????????????????? | +----------------------------------------------------+ Best States ------------- Heat Dissipation 110 Coolant Potential 80 Energy Generation 120 Energy Capacity 2696 Matter Stores 300 Matter Capacity 300 Sight Range 24 Robot Scan Range 20 Terrain Scan Range 16 Terrain Scan Density 10 Jamming Range 14 Cloak Strength 6 Power Amplification 40 EM Shielding 3 Armor Coverage 1000 Resistance: KI 25 Resistance: EM 25 Core Shielding 40 Propulsion Shielding 66 Utility Shielding 66 Point Defense Rating 480 Weapon Cycling 30 Phase Shifting 25 Evasion (%) 106 Targeting Accuracy 42 Core Analysis 8 Armor Integrity Analysis 50 Recoil Reduction 5 Particle Charging 25 Kinecelleration 66 Offensive Hacking 26 Defensive Hacking 25 Item Schematics ----------------- Huge Storage Unit | -10/Materials | Hacked Enh. Autogun | -8/Materials | Scanalyzed Arm. Treads | -8/Materials | Scanalyzed Hcp. Storage Unit | -8/Materials | Scanalyzed Hrd. Medium Armor Plating | -8/Materials | Scanalyzed Hvy. Missile Launcher | -8/Storage | Hacked Gatling Laser | -8/Storage | Hacked Lrn. Sensor Array | -5/Factory | Hacked Assault Drone Bay | -4/Zhirov | Free Exp. Heat Sink | -4/Zhirov | Free Exp. Optical Array | -4/Zhirov | Free Imp. Arc Thrower | -4/Zhirov | Free Diametric Drive | -2/Quarantine | Archive Helical Railgun | -2/Quarantine | Archive Exp. Signal Interpreter | -2/Quarantine | Archive Adv. Plasma Rifle | -2/Quarantine | Archive Adv. KE Penetrator | -2/Quarantine | Archive Exp. Cooling System | -2/Quarantine | Archive Exp. Coolant Injector | -2/Quarantine | Archive Exp. Power Shielding | -2/Protoforge | Archive Quantum Shading Machine | -2/Protoforge | Archive Exp. Flexi-carbon Leg | -2/Protoforge | Archive Com. Particle Reactor | -2/Protoforge | Archive Exp. Biometal Heavy Treads | -2/Protoforge | Archive Imp. Matter Neutralizer | -2/Protoforge | Archive Enh. Armored Heavy Treads | -2/Protoforge | Archive Adv. EM Disruption Field | -2/Protoforge | Archive Prc. Phase Gun | -2/Protoforge | Archive Nanosword | -2/Protoforge | Archive Stealth Drone Bay | -2/Protoforge | Archive Exp. System Shield | -2/Protoforge | Archive Imp. Matter Compressor | -2/Protoforge | Archive Robot Schematics ------------------ E-15 Imp | -2/Quarantine | Archive G-67 Veteran | -2/Quarantine | Archive K-01 Serf | -2/Protoforge | Archive B-74 Champion | -2/Protoforge | Archive S-43 Plague | -2/Protoforge | Archive G-73 Enforcer | -2/Protoforge | Archive Fabricated ------------ Nothing Repaired ---------- Lgt. Treads | 26% | -10/Materials Lgt. Cannon | 58% | -10/Materials Shield Generator | 23% | -8/Materials Sub. Beam Cannon | 99% | -8/Materials | Broken Lgt. Treads | 31% | -8/Materials Sub. Laser | 11% | -8/Materials | Broken Imp. Treads | 60% | -8/Materials Shield Generator | 20% | -8/Storage Enh. Autogun | 66% | -8/Storage Hrd. Medium Armor Plating | 65% | -8/Storage Imp. Cooling System | 58% | -8/Storage Hardlight Generator | 13% | -6/Extension Imp. Weapon Cycler | 35% | -4/Factory Weapon Cycler | 42% | -4/Factory Quantum Capacitor | 53% | -2/Protoforge Alien Tech Used ----------------- Integrated Reactor Transdimensional Reconstructor Core Expander Integrated Mediator Phase Redirector Subatomic Replicator Core Cannon Phase Armor Sigix Broadsword Core Stripper Sigix Terminator Integrated Dissipator Modified Sigix Sheargun High-powered Transdimensional Reconstructor Achievements -------------- Below Superachiever WMD Challenges ------------ None Game ------ Seed ShadingFlightCutter Manual? 0 Play Time 11:55:14 Cumulative 251.5 hours Start 2025.06.11 @ 21:11:44 End 2025.06.14 @ 19:55:45 Sessions 438 Manual Loads 0 Difficulty Rogue Special Mode None Game No. 40 Rogue 33 Adventurer 4 Explorer 3 Win Type 1 Total 24 Types 10/6/2/1/1/0/1/2/0/1 Lore% 69 Gallery% 83 Achievement% 75 Wizard Run 0 Options --------- Layout 0 ASCII 0 Keyboard 0 Movement Mouse Keybinds 0 Fullscreen 1 Font 24/Smallcaps Map View 60x50 Zoom Use 2% Tactical HUD 1 Map Filters NONE Filters NONE Steam X RUN: 850e6ced-b8f8-4a4d-962d-e4459890913a